{"text_format":"3","workbook":"xlsx","n_sheets":2,"sheets":["Programación de clase","Lista de clase"],"not_rendered":{"defined_names":17},"read":"whole","date_system":"1900"}

{"sheet":"Programación de clase","index":0,"n_rows":56,"n_cols":9,"rows_kept":56,"merged":[[0,1,1,5],[0,8,1,8]]}
[null,"PROGRAMACIÓN DE CLASE",{"$nulls":4},"INICIO DE LA \nPROGRAMACIÓN","INTERVALO DE TIEMPO","Lista de clase"]
[{"$nulls":6},"08:00:00","15 MIN"]
[null,"HORA","DOMINGO","LUNES","MARTES","MIÉRCOLES","JUEVES","VIERNES","SÁBADO"]
[null,{"$f":"InicioDeLaProgramación","v":"08:00:00"},{"$f":"IFERROR(INDEX(ListaDeClase[],MATCH(SUMPRODUCT((ListaDeClase[DÍA]=ProgramaciónDeClase[[#Headers],[DOMINGO]])*(ROUNDDOWN($B4,10)>=ROUNDDOWN(ListaDeClase[HORA DE INICIO],10))*($B4<=ListaDeClase[HORA DE FINALIZACIÓN]),ListaDeClase[ÚNICO]),ListaDeClase[ÚNICO],0),2),0)","v":0},{"$f":"IFERROR(INDEX(ListaDeClase[],MATCH(SUMPRODUCT((ListaDeClase[DÍA]=ProgramaciónDeClase[[#Headers],[LUNES]])*(ROUNDDOWN($B4,10)>=ROUNDDOWN(ListaDeClase[HORA DE INICIO],10))*($B4<=ListaDeClase[HORA DE FINALIZACIÓN]),ListaDeClase[ÚNICO]),ListaDeClase[ÚNICO],0),2),0)","v":0},{"$f":"IFERROR(INDEX(ListaDeClase[],MATCH(SUMPRODUCT((ListaDeClase[DÍA]=ProgramaciónDeClase[[#Headers],[MARTES]])*(ROUNDDOWN($B4,10)>=ROUNDDOWN(ListaDeClase[HORA DE INICIO],10))*($B4<=ListaDeClase[HORA DE FINALIZACIÓN]),ListaDeClase[ÚNICO]),ListaDeClase[ÚNICO],0),2),0)","v":0},{"$f":"IFERROR(INDEX(ListaDeClase[],MATCH(SUMPRODUCT((ListaDeClase[DÍA]=ProgramaciónDeClase[[#Headers],[MIÉRCOLES]])*(ROUNDDOWN($B4,10)>=ROUNDDOWN(ListaDeClase[HORA DE INICIO],10))*($B4<=ListaDeClase[HORA DE FINALIZACIÓN]),ListaDeClase[ÚNICO]),ListaDeClase[ÚNICO],0),2),0)","v":0},{"$f":"IFERROR(INDEX(ListaDeClase[],MATCH(SUMPRODUCT((ListaDeClase[DÍA]=ProgramaciónDeClase[[#Headers],[JUEVES]])*(ROUNDDOWN($B4,10)>=ROUNDDOWN(ListaDeClase[HORA DE INICIO],10))*($B4<=ListaDeClase[HORA DE FINALIZACIÓN]),ListaDeClase[ÚNICO]),ListaDeClase[ÚNICO],0),2),0)","v":0},{"$f":"IFERROR(INDEX(ListaDeClase[],MATCH(SUMPRODUCT((ListaDeClase[DÍA]=ProgramaciónDeClase[[#Headers],[VIERNES]])*(ROUNDDOWN($B4,10)>=ROUNDDOWN(ListaDeClase[HORA DE INICIO],10))*($B4<=ListaDeClase[HORA DE FINALIZACIÓN]),ListaDeClase[ÚNICO]),ListaDeClase[ÚNICO],0),2),0)","v":0},{"$f":"IFERROR(INDEX(ListaDeClase[],MATCH(SUMPRODUCT((ListaDeClase[DÍA]=ProgramaciónDeClase[[#Headers],[SÁBADO]])*(ROUNDDOWN($B4,10)>=ROUNDDOWN(ListaDeClase[HORA DE INICIO],10))*($B4<=ListaDeClase[HORA DE FINALIZACIÓN]),ListaDeClase[ÚNICO]),ListaDeClase[ÚNICO],0),2),0)","v":0}]
[null,{"$f":"B4+Incremento","v":"08:15:00"},{"$f":"IFERROR(INDEX(ListaDeClase[],MATCH(SUMPRODUCT((ListaDeClase[DÍA]=ProgramaciónDeClase[[#Headers],[DOMINGO]])*(ROUNDDOWN($B5,10)>=ROUNDDOWN(ListaDeClase[HORA DE INICIO],10))*($B5<=ListaDeClase[HORA DE FINALIZACIÓN]),ListaDeClase[ÚNICO]),ListaDeClase[ÚNICO],0),2),0)","v":0},{"$f":"IFERROR(INDEX(ListaDeClase[],MATCH(SUMPRODUCT((ListaDeClase[DÍA]=ProgramaciónDeClase[[#Headers],[LUNES]])*(ROUNDDOWN($B5,10)>=ROUNDDOWN(ListaDeClase[HORA DE INICIO],10))*($B5<=ListaDeClase[HORA DE FINALIZACIÓN]),ListaDeClase[ÚNICO]),ListaDeClase[ÚNICO],0),2),0)","v":"MTH-113"},{"$f":"IFERROR(INDEX(ListaDeClase[],MATCH(SUMPRODUCT((ListaDeClase[DÍA]=ProgramaciónDeClase[[#Headers],[MARTES]])*(ROUNDDOWN($B5,10)>=ROUNDDOWN(ListaDeClase[HORA DE INICIO],10))*($B5<=ListaDeClase[HORA DE FINALIZACIÓN]),ListaDeClase[ÚNICO]),ListaDeClase[ÚNICO],0),2),0)","v":0},{"$f":"IFERROR(INDEX(ListaDeClase[],MATCH(SUMPRODUCT((ListaDeClase[DÍA]=ProgramaciónDeClase[[#Headers],[MIÉRCOLES]])*(ROUNDDOWN($B5,10)>=ROUNDDOWN(ListaDeClase[HORA DE INICIO],10))*($B5<=ListaDeClase[HORA DE FINALIZACIÓN]),ListaDeClase[ÚNICO]),ListaDeClase[ÚNICO],0),2),0)","v":"MTH-113"},{"$f":"IFERROR(INDEX(ListaDeClase[],MATCH(SUMPRODUCT((ListaDeClase[DÍA]=ProgramaciónDeClase[[#Headers],[JUEVES]])*(ROUNDDOWN($B5,10)>=ROUNDDOWN(ListaDeClase[HORA DE INICIO],10))*($B5<=ListaDeClase[HORA DE FINALIZACIÓN]),ListaDeClase[ÚNICO]),ListaDeClase[ÚNICO],0),2),0)","v":0},{"$f":"IFERROR(INDEX(ListaDeClase[],MATCH(SUMPRODUCT((ListaDeClase[DÍA]=ProgramaciónDeClase[[#Headers],[VIERNES]])*(ROUNDDOWN($B5,10)>=ROUNDDOWN(ListaDeClase[HORA DE INICIO],10))*($B5<=ListaDeClase[HORA DE FINALIZACIÓN]),ListaDeClase[ÚNICO]),ListaDeClase[ÚNICO],0),2),0)","v":"MTH-113"},{"$f":"IFERROR(INDEX(ListaDeClase[],MATCH(SUMPRODUCT((ListaDeClase[DÍA]=ProgramaciónDeClase[[#Headers],[SÁBADO]])*(ROUNDDOWN($B5,10)>=ROUNDDOWN(ListaDeClase[HORA DE INICIO],10))*($B5<=ListaDeClase[HORA DE FINALIZACIÓN]),ListaDeClase[ÚNICO]),ListaDeClase[ÚNICO],0),2),0)","v":0}]
[null,{"$f":"B5+Incremento","v":"08:30:00"},{"$f":"IFERROR(INDEX(ListaDeClase[],MATCH(SUMPRODUCT((ListaDeClase[DÍA]=ProgramaciónDeClase[[#Headers],[DOMINGO]])*(ROUNDDOWN($B6,10)>=ROUNDDOWN(ListaDeClase[HORA DE INICIO],10))*($B6<=ListaDeClase[HORA DE FINALIZACIÓN]),ListaDeClase[ÚNICO]),ListaDeClase[ÚNICO],0),2),0)","v":0},{"$f":"IFERROR(INDEX(ListaDeClase[],MATCH(SUMPRODUCT((ListaDeClase[DÍA]=ProgramaciónDeClase[[#Headers],[LUNES]])*(ROUNDDOWN($B6,10)>=ROUNDDOWN(ListaDeClase[HORA DE INICIO],10))*($B6<=ListaDeClase[HORA DE FINALIZACIÓN]),ListaDeClase[ÚNICO]),ListaDeClase[ÚNICO],0),2),0)","v":"MTH-113"},{"$f":"IFERROR(INDEX(ListaDeClase[],MATCH(SUMPRODUCT((ListaDeClase[DÍA]=ProgramaciónDeClase[[#Headers],[MARTES]])*(ROUNDDOWN($B6,10)>=ROUNDDOWN(ListaDeClase[HORA DE INICIO],10))*($B6<=ListaDeClase[HORA DE FINALIZACIÓN]),ListaDeClase[ÚNICO]),ListaDeClase[ÚNICO],0),2),0)","v":0},{"$f":"IFERROR(INDEX(ListaDeClase[],MATCH(SUMPRODUCT((ListaDeClase[DÍA]=ProgramaciónDeClase[[#Headers],[MIÉRCOLES]])*(ROUNDDOWN($B6,10)>=ROUNDDOWN(ListaDeClase[HORA DE INICIO],10))*($B6<=ListaDeClase[HORA DE FINALIZACIÓN]),ListaDeClase[ÚNICO]),ListaDeClase[ÚNICO],0),2),0)","v":"MTH-113"},{"$f":"IFERROR(INDEX(ListaDeClase[],MATCH(SUMPRODUCT((ListaDeClase[DÍA]=ProgramaciónDeClase[[#Headers],[JUEVES]])*(ROUNDDOWN($B6,10)>=ROUNDDOWN(ListaDeClase[HORA DE INICIO],10))*($B6<=ListaDeClase[HORA DE FINALIZACIÓN]),ListaDeClase[ÚNICO]),ListaDeClase[ÚNICO],0),2),0)","v":0},{"$f":"IFERROR(INDEX(ListaDeClase[],MATCH(SUMPRODUCT((ListaDeClase[DÍA]=ProgramaciónDeClase[[#Headers],[VIERNES]])*(ROUNDDOWN($B6,10)>=ROUNDDOWN(ListaDeClase[HORA DE INICIO],10))*($B6<=ListaDeClase[HORA DE FINALIZACIÓN]),ListaDeClase[ÚNICO]),ListaDeClase[ÚNICO],0),2),0)","v":"MTH-113"},{"$f":"IFERROR(INDEX(ListaDeClase[],MATCH(SUMPRODUCT((ListaDeClase[DÍA]=ProgramaciónDeClase[[#Headers],[SÁBADO]])*(ROUNDDOWN($B6,10)>=ROUNDDOWN(ListaDeClase[HORA DE INICIO],10))*($B6<=ListaDeClase[HORA DE FINALIZACIÓN]),ListaDeClase[ÚNICO]),ListaDeClase[ÚNICO],0),2),0)","v":0}]
[null,"08:45:00",{"$f":"IFERROR(INDEX(ListaDeClase[],MATCH(SUMPRODUCT((ListaDeClase[DÍA]=ProgramaciónDeClase[[#Headers],[DOMINGO]])*(ROUNDDOWN($B7,10)>=ROUNDDOWN(ListaDeClase[HORA DE INICIO],10))*($B7<=ListaDeClase[HORA DE FINALIZACIÓN]),ListaDeClase[ÚNICO]),ListaDeClase[ÚNICO],0),2),0)","v":0},{"$f":"IFERROR(INDEX(ListaDeClase[],MATCH(SUMPRODUCT((ListaDeClase[DÍA]=ProgramaciónDeClase[[#Headers],[LUNES]])*(ROUNDDOWN($B7,10)>=ROUNDDOWN(ListaDeClase[HORA DE INICIO],10))*($B7<=ListaDeClase[HORA DE FINALIZACIÓN]),ListaDeClase[ÚNICO]),ListaDeClase[ÚNICO],0),2),0)","v":"MTH-113"},{"$f":"IFERROR(INDEX(ListaDeClase[],MATCH(SUMPRODUCT((ListaDeClase[DÍA]=ProgramaciónDeClase[[#Headers],[MARTES]])*(ROUNDDOWN($B7,10)>=ROUNDDOWN(ListaDeClase[HORA DE INICIO],10))*($B7<=ListaDeClase[HORA DE FINALIZACIÓN]),ListaDeClase[ÚNICO]),ListaDeClase[ÚNICO],0),2),0)","v":0},{"$f":"IFERROR(INDEX(ListaDeClase[],MATCH(SUMPRODUCT((ListaDeClase[DÍA]=ProgramaciónDeClase[[#Headers],[MIÉRCOLES]])*(ROUNDDOWN($B7,10)>=ROUNDDOWN(ListaDeClase[HORA DE INICIO],10))*($B7<=ListaDeClase[HORA DE FINALIZACIÓN]),ListaDeClase[ÚNICO]),ListaDeClase[ÚNICO],0),2),0)","v":"MTH-113"},{"$f":"IFERROR(INDEX(ListaDeClase[],MATCH(SUMPRODUCT((ListaDeClase[DÍA]=ProgramaciónDeClase[[#Headers],[JUEVES]])*(ROUNDDOWN($B7,10)>=ROUNDDOWN(ListaDeClase[HORA DE INICIO],10))*($B7<=ListaDeClase[HORA DE FINALIZACIÓN]),ListaDeClase[ÚNICO]),ListaDeClase[ÚNICO],0),2),0)","v":0},{"$f":"IFERROR(INDEX(ListaDeClase[],MATCH(SUMPRODUCT((ListaDeClase[DÍA]=ProgramaciónDeClase[[#Headers],[VIERNES]])*(ROUNDDOWN($B7,10)>=ROUNDDOWN(ListaDeClase[HORA DE INICIO],10))*($B7<=ListaDeClase[HORA DE FINALIZACIÓN]),ListaDeClase[ÚNICO]),ListaDeClase[ÚNICO],0),2),0)","v":"MTH-113"},{"$f":"IFERROR(INDEX(ListaDeClase[],MATCH(SUMPRODUCT((ListaDeClase[DÍA]=ProgramaciónDeClase[[#Headers],[SÁBADO]])*(ROUNDDOWN($B7,10)>=ROUNDDOWN(ListaDeClase[HORA DE INICIO],10))*($B7<=ListaDeClase[HORA DE FINALIZACIÓN]),ListaDeClase[ÚNICO]),ListaDeClase[ÚNICO],0),2),0)","v":0}]
[null,"09:00:00",{"$f":"IFERROR(INDEX(ListaDeClase[],MATCH(SUMPRODUCT((ListaDeClase[DÍA]=ProgramaciónDeClase[[#Headers],[DOMINGO]])*(ROUNDDOWN($B8,10)>=ROUNDDOWN(ListaDeClase[HORA DE INICIO],10))*($B8<=ListaDeClase[HORA DE FINALIZACIÓN]),ListaDeClase[ÚNICO]),ListaDeClase[ÚNICO],0),2),0)","v":0},{"$f":"IFERROR(INDEX(ListaDeClase[],MATCH(SUMPRODUCT((ListaDeClase[DÍA]=ProgramaciónDeClase[[#Headers],[LUNES]])*(ROUNDDOWN($B8,10)>=ROUNDDOWN(ListaDeClase[HORA DE INICIO],10))*($B8<=ListaDeClase[HORA DE FINALIZACIÓN]),ListaDeClase[ÚNICO]),ListaDeClase[ÚNICO],0),2),0)","v":"MTH-113"},{"$f":"IFERROR(INDEX(ListaDeClase[],MATCH(SUMPRODUCT((ListaDeClase[DÍA]=ProgramaciónDeClase[[#Headers],[MARTES]])*(ROUNDDOWN($B8,10)>=ROUNDDOWN(ListaDeClase[HORA DE INICIO],10))*($B8<=ListaDeClase[HORA DE FINALIZACIÓN]),ListaDeClase[ÚNICO]),ListaDeClase[ÚNICO],0),2),0)","v":0},{"$f":"IFERROR(INDEX(ListaDeClase[],MATCH(SUMPRODUCT((ListaDeClase[DÍA]=ProgramaciónDeClase[[#Headers],[MIÉRCOLES]])*(ROUNDDOWN($B8,10)>=ROUNDDOWN(ListaDeClase[HORA DE INICIO],10))*($B8<=ListaDeClase[HORA DE FINALIZACIÓN]),ListaDeClase[ÚNICO]),ListaDeClase[ÚNICO],0),2),0)","v":"MTH-113"},{"$f":"IFERROR(INDEX(ListaDeClase[],MATCH(SUMPRODUCT((ListaDeClase[DÍA]=ProgramaciónDeClase[[#Headers],[JUEVES]])*(ROUNDDOWN($B8,10)>=ROUNDDOWN(ListaDeClase[HORA DE INICIO],10))*($B8<=ListaDeClase[HORA DE FINALIZACIÓN]),ListaDeClase[ÚNICO]),ListaDeClase[ÚNICO],0),2),0)","v":0},{"$f":"IFERROR(INDEX(ListaDeClase[],MATCH(SUMPRODUCT((ListaDeClase[DÍA]=ProgramaciónDeClase[[#Headers],[VIERNES]])*(ROUNDDOWN($B8,10)>=ROUNDDOWN(ListaDeClase[HORA DE INICIO],10))*($B8<=ListaDeClase[HORA DE FINALIZACIÓN]),ListaDeClase[ÚNICO]),ListaDeClase[ÚNICO],0),2),0)","v":"MTH-113"},{"$f":"IFERROR(INDEX(ListaDeClase[],MATCH(SUMPRODUCT((ListaDeClase[DÍA]=ProgramaciónDeClase[[#Headers],[SÁBADO]])*(ROUNDDOWN($B8,10)>=ROUNDDOWN(ListaDeClase[HORA DE INICIO],10))*($B8<=ListaDeClase[HORA DE FINALIZACIÓN]),ListaDeClase[ÚNICO]),ListaDeClase[ÚNICO],0),2),0)","v":0}]
[null,"09:15:00",{"$f":"IFERROR(INDEX(ListaDeClase[],MATCH(SUMPRODUCT((ListaDeClase[DÍA]=ProgramaciónDeClase[[#Headers],[DOMINGO]])*(ROUNDDOWN($B9,10)>=ROUNDDOWN(ListaDeClase[HORA DE INICIO],10))*($B9<=ListaDeClase[HORA DE FINALIZACIÓN]),ListaDeClase[ÚNICO]),ListaDeClase[ÚNICO],0),2),0)","v":0},{"$f":"IFERROR(INDEX(ListaDeClase[],MATCH(SUMPRODUCT((ListaDeClase[DÍA]=ProgramaciónDeClase[[#Headers],[LUNES]])*(ROUNDDOWN($B9,10)>=ROUNDDOWN(ListaDeClase[HORA DE INICIO],10))*($B9<=ListaDeClase[HORA DE FINALIZACIÓN]),ListaDeClase[ÚNICO]),ListaDeClase[ÚNICO],0),2),0)","v":"MTH-113"},{"$f":"IFERROR(INDEX(ListaDeClase[],MATCH(SUMPRODUCT((ListaDeClase[DÍA]=ProgramaciónDeClase[[#Headers],[MARTES]])*(ROUNDDOWN($B9,10)>=ROUNDDOWN(ListaDeClase[HORA DE INICIO],10))*($B9<=ListaDeClase[HORA DE FINALIZACIÓN]),ListaDeClase[ÚNICO]),ListaDeClase[ÚNICO],0),2),0)","v":0},{"$f":"IFERROR(INDEX(ListaDeClase[],MATCH(SUMPRODUCT((ListaDeClase[DÍA]=ProgramaciónDeClase[[#Headers],[MIÉRCOLES]])*(ROUNDDOWN($B9,10)>=ROUNDDOWN(ListaDeClase[HORA DE INICIO],10))*($B9<=ListaDeClase[HORA DE FINALIZACIÓN]),ListaDeClase[ÚNICO]),ListaDeClase[ÚNICO],0),2),0)","v":"MTH-113"},{"$f":"IFERROR(INDEX(ListaDeClase[],MATCH(SUMPRODUCT((ListaDeClase[DÍA]=ProgramaciónDeClase[[#Headers],[JUEVES]])*(ROUNDDOWN($B9,10)>=ROUNDDOWN(ListaDeClase[HORA DE INICIO],10))*($B9<=ListaDeClase[HORA DE FINALIZACIÓN]),ListaDeClase[ÚNICO]),ListaDeClase[ÚNICO],0),2),0)","v":0},{"$f":"IFERROR(INDEX(ListaDeClase[],MATCH(SUMPRODUCT((ListaDeClase[DÍA]=ProgramaciónDeClase[[#Headers],[VIERNES]])*(ROUNDDOWN($B9,10)>=ROUNDDOWN(ListaDeClase[HORA DE INICIO],10))*($B9<=ListaDeClase[HORA DE FINALIZACIÓN]),ListaDeClase[ÚNICO]),ListaDeClase[ÚNICO],0),2),0)","v":"MTH-113"},{"$f":"IFERROR(INDEX(ListaDeClase[],MATCH(SUMPRODUCT((ListaDeClase[DÍA]=ProgramaciónDeClase[[#Headers],[SÁBADO]])*(ROUNDDOWN($B9,10)>=ROUNDDOWN(ListaDeClase[HORA DE INICIO],10))*($B9<=ListaDeClase[HORA DE FINALIZACIÓN]),ListaDeClase[ÚNICO]),ListaDeClase[ÚNICO],0),2),0)","v":0}]
[null,"09:30:00",{"$f":"IFERROR(INDEX(ListaDeClase[],MATCH(SUMPRODUCT((ListaDeClase[DÍA]=ProgramaciónDeClase[[#Headers],[DOMINGO]])*(ROUNDDOWN($B10,10)>=ROUNDDOWN(ListaDeClase[HORA DE INICIO],10))*($B10<=ListaDeClase[HORA DE FINALIZACIÓN]),ListaDeClase[ÚNICO]),ListaDeClase[ÚNICO],0),2),0)","v":0},{"$f":"IFERROR(INDEX(ListaDeClase[],MATCH(SUMPRODUCT((ListaDeClase[DÍA]=ProgramaciónDeClase[[#Headers],[LUNES]])*(ROUNDDOWN($B10,10)>=ROUNDDOWN(ListaDeClase[HORA DE INICIO],10))*($B10<=ListaDeClase[HORA DE FINALIZACIÓN]),ListaDeClase[ÚNICO]),ListaDeClase[ÚNICO],0),2),0)","v":0},{"$f":"IFERROR(INDEX(ListaDeClase[],MATCH(SUMPRODUCT((ListaDeClase[DÍA]=ProgramaciónDeClase[[#Headers],[MARTES]])*(ROUNDDOWN($B10,10)>=ROUNDDOWN(ListaDeClase[HORA DE INICIO],10))*($B10<=ListaDeClase[HORA DE FINALIZACIÓN]),ListaDeClase[ÚNICO]),ListaDeClase[ÚNICO],0),2),0)","v":0},{"$f":"IFERROR(INDEX(ListaDeClase[],MATCH(SUMPRODUCT((ListaDeClase[DÍA]=ProgramaciónDeClase[[#Headers],[MIÉRCOLES]])*(ROUNDDOWN($B10,10)>=ROUNDDOWN(ListaDeClase[HORA DE INICIO],10))*($B10<=ListaDeClase[HORA DE FINALIZACIÓN]),ListaDeClase[ÚNICO]),ListaDeClase[ÚNICO],0),2),0)","v":0},{"$f":"IFERROR(INDEX(ListaDeClase[],MATCH(SUMPRODUCT((ListaDeClase[DÍA]=ProgramaciónDeClase[[#Headers],[JUEVES]])*(ROUNDDOWN($B10,10)>=ROUNDDOWN(ListaDeClase[HORA DE INICIO],10))*($B10<=ListaDeClase[HORA DE FINALIZACIÓN]),ListaDeClase[ÚNICO]),ListaDeClase[ÚNICO],0),2),0)","v":0},{"$f":"IFERROR(INDEX(ListaDeClase[],MATCH(SUMPRODUCT((ListaDeClase[DÍA]=ProgramaciónDeClase[[#Headers],[VIERNES]])*(ROUNDDOWN($B10,10)>=ROUNDDOWN(ListaDeClase[HORA DE INICIO],10))*($B10<=ListaDeClase[HORA DE FINALIZACIÓN]),ListaDeClase[ÚNICO]),ListaDeClase[ÚNICO],0),2),0)","v":0},{"$f":"IFERROR(INDEX(ListaDeClase[],MATCH(SUMPRODUCT((ListaDeClase[DÍA]=ProgramaciónDeClase[[#Headers],[SÁBADO]])*(ROUNDDOWN($B10,10)>=ROUNDDOWN(ListaDeClase[HORA DE INICIO],10))*($B10<=ListaDeClase[HORA DE FINALIZACIÓN]),ListaDeClase[ÚNICO]),ListaDeClase[ÚNICO],0),2),0)","v":0}]
[null,"09:45:00",{"$f":"IFERROR(INDEX(ListaDeClase[],MATCH(SUMPRODUCT((ListaDeClase[DÍA]=ProgramaciónDeClase[[#Headers],[DOMINGO]])*(ROUNDDOWN($B11,10)>=ROUNDDOWN(ListaDeClase[HORA DE INICIO],10))*($B11<=ListaDeClase[HORA DE FINALIZACIÓN]),ListaDeClase[ÚNICO]),ListaDeClase[ÚNICO],0),2),0)","v":0},{"$f":"IFERROR(INDEX(ListaDeClase[],MATCH(SUMPRODUCT((ListaDeClase[DÍA]=ProgramaciónDeClase[[#Headers],[LUNES]])*(ROUNDDOWN($B11,10)>=ROUNDDOWN(ListaDeClase[HORA DE INICIO],10))*($B11<=ListaDeClase[HORA DE FINALIZACIÓN]),ListaDeClase[ÚNICO]),ListaDeClase[ÚNICO],0),2),0)","v":0},{"$f":"IFERROR(INDEX(ListaDeClase[],MATCH(SUMPRODUCT((ListaDeClase[DÍA]=ProgramaciónDeClase[[#Headers],[MARTES]])*(ROUNDDOWN($B11,10)>=ROUNDDOWN(ListaDeClase[HORA DE INICIO],10))*($B11<=ListaDeClase[HORA DE FINALIZACIÓN]),ListaDeClase[ÚNICO]),ListaDeClase[ÚNICO],0),2),0)","v":0},{"$f":"IFERROR(INDEX(ListaDeClase[],MATCH(SUMPRODUCT((ListaDeClase[DÍA]=ProgramaciónDeClase[[#Headers],[MIÉRCOLES]])*(ROUNDDOWN($B11,10)>=ROUNDDOWN(ListaDeClase[HORA DE INICIO],10))*($B11<=ListaDeClase[HORA DE FINALIZACIÓN]),ListaDeClase[ÚNICO]),ListaDeClase[ÚNICO],0),2),0)","v":0},{"$f":"IFERROR(INDEX(ListaDeClase[],MATCH(SUMPRODUCT((ListaDeClase[DÍA]=ProgramaciónDeClase[[#Headers],[JUEVES]])*(ROUNDDOWN($B11,10)>=ROUNDDOWN(ListaDeClase[HORA DE INICIO],10))*($B11<=ListaDeClase[HORA DE FINALIZACIÓN]),ListaDeClase[ÚNICO]),ListaDeClase[ÚNICO],0),2),0)","v":0},{"$f":"IFERROR(INDEX(ListaDeClase[],MATCH(SUMPRODUCT((ListaDeClase[DÍA]=ProgramaciónDeClase[[#Headers],[VIERNES]])*(ROUNDDOWN($B11,10)>=ROUNDDOWN(ListaDeClase[HORA DE INICIO],10))*($B11<=ListaDeClase[HORA DE FINALIZACIÓN]),ListaDeClase[ÚNICO]),ListaDeClase[ÚNICO],0),2),0)","v":0},{"$f":"IFERROR(INDEX(ListaDeClase[],MATCH(SUMPRODUCT((ListaDeClase[DÍA]=ProgramaciónDeClase[[#Headers],[SÁBADO]])*(ROUNDDOWN($B11,10)>=ROUNDDOWN(ListaDeClase[HORA DE INICIO],10))*($B11<=ListaDeClase[HORA DE FINALIZACIÓN]),ListaDeClase[ÚNICO]),ListaDeClase[ÚNICO],0),2),0)","v":0}]
[null,"10:00:00",{"$f":"IFERROR(INDEX(ListaDeClase[],MATCH(SUMPRODUCT((ListaDeClase[DÍA]=ProgramaciónDeClase[[#Headers],[DOMINGO]])*(ROUNDDOWN($B12,10)>=ROUNDDOWN(ListaDeClase[HORA DE INICIO],10))*($B12<=ListaDeClase[HORA DE FINALIZACIÓN]),ListaDeClase[ÚNICO]),ListaDeClase[ÚNICO],0),2),0)","v":0},{"$f":"IFERROR(INDEX(ListaDeClase[],MATCH(SUMPRODUCT((ListaDeClase[DÍA]=ProgramaciónDeClase[[#Headers],[LUNES]])*(ROUNDDOWN($B12,10)>=ROUNDDOWN(ListaDeClase[HORA DE INICIO],10))*($B12<=ListaDeClase[HORA DE FINALIZACIÓN]),ListaDeClase[ÚNICO]),ListaDeClase[ÚNICO],0),2),0)","v":0},{"$f":"IFERROR(INDEX(ListaDeClase[],MATCH(SUMPRODUCT((ListaDeClase[DÍA]=ProgramaciónDeClase[[#Headers],[MARTES]])*(ROUNDDOWN($B12,10)>=ROUNDDOWN(ListaDeClase[HORA DE INICIO],10))*($B12<=ListaDeClase[HORA DE FINALIZACIÓN]),ListaDeClase[ÚNICO]),ListaDeClase[ÚNICO],0),2),0)","v":0},{"$f":"IFERROR(INDEX(ListaDeClase[],MATCH(SUMPRODUCT((ListaDeClase[DÍA]=ProgramaciónDeClase[[#Headers],[MIÉRCOLES]])*(ROUNDDOWN($B12,10)>=ROUNDDOWN(ListaDeClase[HORA DE INICIO],10))*($B12<=ListaDeClase[HORA DE FINALIZACIÓN]),ListaDeClase[ÚNICO]),ListaDeClase[ÚNICO],0),2),0)","v":0},{"$f":"IFERROR(INDEX(ListaDeClase[],MATCH(SUMPRODUCT((ListaDeClase[DÍA]=ProgramaciónDeClase[[#Headers],[JUEVES]])*(ROUNDDOWN($B12,10)>=ROUNDDOWN(ListaDeClase[HORA DE INICIO],10))*($B12<=ListaDeClase[HORA DE FINALIZACIÓN]),ListaDeClase[ÚNICO]),ListaDeClase[ÚNICO],0),2),0)","v":0},{"$f":"IFERROR(INDEX(ListaDeClase[],MATCH(SUMPRODUCT((ListaDeClase[DÍA]=ProgramaciónDeClase[[#Headers],[VIERNES]])*(ROUNDDOWN($B12,10)>=ROUNDDOWN(ListaDeClase[HORA DE INICIO],10))*($B12<=ListaDeClase[HORA DE FINALIZACIÓN]),ListaDeClase[ÚNICO]),ListaDeClase[ÚNICO],0),2),0)","v":0},{"$f":"IFERROR(INDEX(ListaDeClase[],MATCH(SUMPRODUCT((ListaDeClase[DÍA]=ProgramaciónDeClase[[#Headers],[SÁBADO]])*(ROUNDDOWN($B12,10)>=ROUNDDOWN(ListaDeClase[HORA DE INICIO],10))*($B12<=ListaDeClase[HORA DE FINALIZACIÓN]),ListaDeClase[ÚNICO]),ListaDeClase[ÚNICO],0),2),0)","v":0}]
[null,"10:15:00",{"$f":"IFERROR(INDEX(ListaDeClase[],MATCH(SUMPRODUCT((ListaDeClase[DÍA]=ProgramaciónDeClase[[#Headers],[DOMINGO]])*(ROUNDDOWN($B13,10)>=ROUNDDOWN(ListaDeClase[HORA DE INICIO],10))*($B13<=ListaDeClase[HORA DE FINALIZACIÓN]),ListaDeClase[ÚNICO]),ListaDeClase[ÚNICO],0),2),0)","v":0},{"$f":"IFERROR(INDEX(ListaDeClase[],MATCH(SUMPRODUCT((ListaDeClase[DÍA]=ProgramaciónDeClase[[#Headers],[LUNES]])*(ROUNDDOWN($B13,10)>=ROUNDDOWN(ListaDeClase[HORA DE INICIO],10))*($B13<=ListaDeClase[HORA DE FINALIZACIÓN]),ListaDeClase[ÚNICO]),ListaDeClase[ÚNICO],0),2),0)","v":0},{"$f":"IFERROR(INDEX(ListaDeClase[],MATCH(SUMPRODUCT((ListaDeClase[DÍA]=ProgramaciónDeClase[[#Headers],[MARTES]])*(ROUNDDOWN($B13,10)>=ROUNDDOWN(ListaDeClase[HORA DE INICIO],10))*($B13<=ListaDeClase[HORA DE FINALIZACIÓN]),ListaDeClase[ÚNICO]),ListaDeClase[ÚNICO],0),2),0)","v":0},{"$f":"IFERROR(INDEX(ListaDeClase[],MATCH(SUMPRODUCT((ListaDeClase[DÍA]=ProgramaciónDeClase[[#Headers],[MIÉRCOLES]])*(ROUNDDOWN($B13,10)>=ROUNDDOWN(ListaDeClase[HORA DE INICIO],10))*($B13<=ListaDeClase[HORA DE FINALIZACIÓN]),ListaDeClase[ÚNICO]),ListaDeClase[ÚNICO],0),2),0)","v":0},{"$f":"IFERROR(INDEX(ListaDeClase[],MATCH(SUMPRODUCT((ListaDeClase[DÍA]=ProgramaciónDeClase[[#Headers],[JUEVES]])*(ROUNDDOWN($B13,10)>=ROUNDDOWN(ListaDeClase[HORA DE INICIO],10))*($B13<=ListaDeClase[HORA DE FINALIZACIÓN]),ListaDeClase[ÚNICO]),ListaDeClase[ÚNICO],0),2),0)","v":0},{"$f":"IFERROR(INDEX(ListaDeClase[],MATCH(SUMPRODUCT((ListaDeClase[DÍA]=ProgramaciónDeClase[[#Headers],[VIERNES]])*(ROUNDDOWN($B13,10)>=ROUNDDOWN(ListaDeClase[HORA DE INICIO],10))*($B13<=ListaDeClase[HORA DE FINALIZACIÓN]),ListaDeClase[ÚNICO]),ListaDeClase[ÚNICO],0),2),0)","v":0},{"$f":"IFERROR(INDEX(ListaDeClase[],MATCH(SUMPRODUCT((ListaDeClase[DÍA]=ProgramaciónDeClase[[#Headers],[SÁBADO]])*(ROUNDDOWN($B13,10)>=ROUNDDOWN(ListaDeClase[HORA DE INICIO],10))*($B13<=ListaDeClase[HORA DE FINALIZACIÓN]),ListaDeClase[ÚNICO]),ListaDeClase[ÚNICO],0),2),0)","v":0}]
[null,"10:30:00",{"$f":"IFERROR(INDEX(ListaDeClase[],MATCH(SUMPRODUCT((ListaDeClase[DÍA]=ProgramaciónDeClase[[#Headers],[DOMINGO]])*(ROUNDDOWN($B14,10)>=ROUNDDOWN(ListaDeClase[HORA DE INICIO],10))*($B14<=ListaDeClase[HORA DE FINALIZACIÓN]),ListaDeClase[ÚNICO]),ListaDeClase[ÚNICO],0),2),0)","v":0},{"$f":"IFERROR(INDEX(ListaDeClase[],MATCH(SUMPRODUCT((ListaDeClase[DÍA]=ProgramaciónDeClase[[#Headers],[LUNES]])*(ROUNDDOWN($B14,10)>=ROUNDDOWN(ListaDeClase[HORA DE INICIO],10))*($B14<=ListaDeClase[HORA DE FINALIZACIÓN]),ListaDeClase[ÚNICO]),ListaDeClase[ÚNICO],0),2),0)","v":0},{"$f":"IFERROR(INDEX(ListaDeClase[],MATCH(SUMPRODUCT((ListaDeClase[DÍA]=ProgramaciónDeClase[[#Headers],[MARTES]])*(ROUNDDOWN($B14,10)>=ROUNDDOWN(ListaDeClase[HORA DE INICIO],10))*($B14<=ListaDeClase[HORA DE FINALIZACIÓN]),ListaDeClase[ÚNICO]),ListaDeClase[ÚNICO],0),2),0)","v":0},{"$f":"IFERROR(INDEX(ListaDeClase[],MATCH(SUMPRODUCT((ListaDeClase[DÍA]=ProgramaciónDeClase[[#Headers],[MIÉRCOLES]])*(ROUNDDOWN($B14,10)>=ROUNDDOWN(ListaDeClase[HORA DE INICIO],10))*($B14<=ListaDeClase[HORA DE FINALIZACIÓN]),ListaDeClase[ÚNICO]),ListaDeClase[ÚNICO],0),2),0)","v":0},{"$f":"IFERROR(INDEX(ListaDeClase[],MATCH(SUMPRODUCT((ListaDeClase[DÍA]=ProgramaciónDeClase[[#Headers],[JUEVES]])*(ROUNDDOWN($B14,10)>=ROUNDDOWN(ListaDeClase[HORA DE INICIO],10))*($B14<=ListaDeClase[HORA DE FINALIZACIÓN]),ListaDeClase[ÚNICO]),ListaDeClase[ÚNICO],0),2),0)","v":0},{"$f":"IFERROR(INDEX(ListaDeClase[],MATCH(SUMPRODUCT((ListaDeClase[DÍA]=ProgramaciónDeClase[[#Headers],[VIERNES]])*(ROUNDDOWN($B14,10)>=ROUNDDOWN(ListaDeClase[HORA DE INICIO],10))*($B14<=ListaDeClase[HORA DE FINALIZACIÓN]),ListaDeClase[ÚNICO]),ListaDeClase[ÚNICO],0),2),0)","v":0},{"$f":"IFERROR(INDEX(ListaDeClase[],MATCH(SUMPRODUCT((ListaDeClase[DÍA]=ProgramaciónDeClase[[#Headers],[SÁBADO]])*(ROUNDDOWN($B14,10)>=ROUNDDOWN(ListaDeClase[HORA DE INICIO],10))*($B14<=ListaDeClase[HORA DE FINALIZACIÓN]),ListaDeClase[ÚNICO]),ListaDeClase[ÚNICO],0),2),0)","v":0}]
[null,"10:45:00",{"$f":"IFERROR(INDEX(ListaDeClase[],MATCH(SUMPRODUCT((ListaDeClase[DÍA]=ProgramaciónDeClase[[#Headers],[DOMINGO]])*(ROUNDDOWN($B15,10)>=ROUNDDOWN(ListaDeClase[HORA DE INICIO],10))*($B15<=ListaDeClase[HORA DE FINALIZACIÓN]),ListaDeClase[ÚNICO]),ListaDeClase[ÚNICO],0),2),0)","v":0},{"$f":"IFERROR(INDEX(ListaDeClase[],MATCH(SUMPRODUCT((ListaDeClase[DÍA]=ProgramaciónDeClase[[#Headers],[LUNES]])*(ROUNDDOWN($B15,10)>=ROUNDDOWN(ListaDeClase[HORA DE INICIO],10))*($B15<=ListaDeClase[HORA DE FINALIZACIÓN]),ListaDeClase[ÚNICO]),ListaDeClase[ÚNICO],0),2),0)","v":0},{"$f":"IFERROR(INDEX(ListaDeClase[],MATCH(SUMPRODUCT((ListaDeClase[DÍA]=ProgramaciónDeClase[[#Headers],[MARTES]])*(ROUNDDOWN($B15,10)>=ROUNDDOWN(ListaDeClase[HORA DE INICIO],10))*($B15<=ListaDeClase[HORA DE FINALIZACIÓN]),ListaDeClase[ÚNICO]),ListaDeClase[ÚNICO],0),2),0)","v":0},{"$f":"IFERROR(INDEX(ListaDeClase[],MATCH(SUMPRODUCT((ListaDeClase[DÍA]=ProgramaciónDeClase[[#Headers],[MIÉRCOLES]])*(ROUNDDOWN($B15,10)>=ROUNDDOWN(ListaDeClase[HORA DE INICIO],10))*($B15<=ListaDeClase[HORA DE FINALIZACIÓN]),ListaDeClase[ÚNICO]),ListaDeClase[ÚNICO],0),2),0)","v":0},{"$f":"IFERROR(INDEX(ListaDeClase[],MATCH(SUMPRODUCT((ListaDeClase[DÍA]=ProgramaciónDeClase[[#Headers],[JUEVES]])*(ROUNDDOWN($B15,10)>=ROUNDDOWN(ListaDeClase[HORA DE INICIO],10))*($B15<=ListaDeClase[HORA DE FINALIZACIÓN]),ListaDeClase[ÚNICO]),ListaDeClase[ÚNICO],0),2),0)","v":0},{"$f":"IFERROR(INDEX(ListaDeClase[],MATCH(SUMPRODUCT((ListaDeClase[DÍA]=ProgramaciónDeClase[[#Headers],[VIERNES]])*(ROUNDDOWN($B15,10)>=ROUNDDOWN(ListaDeClase[HORA DE INICIO],10))*($B15<=ListaDeClase[HORA DE FINALIZACIÓN]),ListaDeClase[ÚNICO]),ListaDeClase[ÚNICO],0),2),0)","v":0},{"$f":"IFERROR(INDEX(ListaDeClase[],MATCH(SUMPRODUCT((ListaDeClase[DÍA]=ProgramaciónDeClase[[#Headers],[SÁBADO]])*(ROUNDDOWN($B15,10)>=ROUNDDOWN(ListaDeClase[HORA DE INICIO],10))*($B15<=ListaDeClase[HORA DE FINALIZACIÓN]),ListaDeClase[ÚNICO]),ListaDeClase[ÚNICO],0),2),0)","v":0}]
[null,"11:00:00",{"$f":"IFERROR(INDEX(ListaDeClase[],MATCH(SUMPRODUCT((ListaDeClase[DÍA]=ProgramaciónDeClase[[#Headers],[DOMINGO]])*(ROUNDDOWN($B16,10)>=ROUNDDOWN(ListaDeClase[HORA DE INICIO],10))*($B16<=ListaDeClase[HORA DE FINALIZACIÓN]),ListaDeClase[ÚNICO]),ListaDeClase[ÚNICO],0),2),0)","v":0},{"$f":"IFERROR(INDEX(ListaDeClase[],MATCH(SUMPRODUCT((ListaDeClase[DÍA]=ProgramaciónDeClase[[#Headers],[LUNES]])*(ROUNDDOWN($B16,10)>=ROUNDDOWN(ListaDeClase[HORA DE INICIO],10))*($B16<=ListaDeClase[HORA DE FINALIZACIÓN]),ListaDeClase[ÚNICO]),ListaDeClase[ÚNICO],0),2),0)","v":0},{"$f":"IFERROR(INDEX(ListaDeClase[],MATCH(SUMPRODUCT((ListaDeClase[DÍA]=ProgramaciónDeClase[[#Headers],[MARTES]])*(ROUNDDOWN($B16,10)>=ROUNDDOWN(ListaDeClase[HORA DE INICIO],10))*($B16<=ListaDeClase[HORA DE FINALIZACIÓN]),ListaDeClase[ÚNICO]),ListaDeClase[ÚNICO],0),2),0)","v":"HPE-295"},{"$f":"IFERROR(INDEX(ListaDeClase[],MATCH(SUMPRODUCT((ListaDeClase[DÍA]=ProgramaciónDeClase[[#Headers],[MIÉRCOLES]])*(ROUNDDOWN($B16,10)>=ROUNDDOWN(ListaDeClase[HORA DE INICIO],10))*($B16<=ListaDeClase[HORA DE FINALIZACIÓN]),ListaDeClase[ÚNICO]),ListaDeClase[ÚNICO],0),2),0)","v":0},{"$f":"IFERROR(INDEX(ListaDeClase[],MATCH(SUMPRODUCT((ListaDeClase[DÍA]=ProgramaciónDeClase[[#Headers],[JUEVES]])*(ROUNDDOWN($B16,10)>=ROUNDDOWN(ListaDeClase[HORA DE INICIO],10))*($B16<=ListaDeClase[HORA DE FINALIZACIÓN]),ListaDeClase[ÚNICO]),ListaDeClase[ÚNICO],0),2),0)","v":"HPE-295"},{"$f":"IFERROR(INDEX(ListaDeClase[],MATCH(SUMPRODUCT((ListaDeClase[DÍA]=ProgramaciónDeClase[[#Headers],[VIERNES]])*(ROUNDDOWN($B16,10)>=ROUNDDOWN(ListaDeClase[HORA DE INICIO],10))*($B16<=ListaDeClase[HORA DE FINALIZACIÓN]),ListaDeClase[ÚNICO]),ListaDeClase[ÚNICO],0),2),0)","v":0},{"$f":"IFERROR(INDEX(ListaDeClase[],MATCH(SUMPRODUCT((ListaDeClase[DÍA]=ProgramaciónDeClase[[#Headers],[SÁBADO]])*(ROUNDDOWN($B16,10)>=ROUNDDOWN(ListaDeClase[HORA DE INICIO],10))*($B16<=ListaDeClase[HORA DE FINALIZACIÓN]),ListaDeClase[ÚNICO]),ListaDeClase[ÚNICO],0),2),0)","v":0}]
[null,"11:15:00",{"$f":"IFERROR(INDEX(ListaDeClase[],MATCH(SUMPRODUCT((ListaDeClase[DÍA]=ProgramaciónDeClase[[#Headers],[DOMINGO]])*(ROUNDDOWN($B17,10)>=ROUNDDOWN(ListaDeClase[HORA DE INICIO],10))*($B17<=ListaDeClase[HORA DE FINALIZACIÓN]),ListaDeClase[ÚNICO]),ListaDeClase[ÚNICO],0),2),0)","v":0},{"$f":"IFERROR(INDEX(ListaDeClase[],MATCH(SUMPRODUCT((ListaDeClase[DÍA]=ProgramaciónDeClase[[#Headers],[LUNES]])*(ROUNDDOWN($B17,10)>=ROUNDDOWN(ListaDeClase[HORA DE INICIO],10))*($B17<=ListaDeClase[HORA DE FINALIZACIÓN]),ListaDeClase[ÚNICO]),ListaDeClase[ÚNICO],0),2),0)","v":0},{"$f":"IFERROR(INDEX(ListaDeClase[],MATCH(SUMPRODUCT((ListaDeClase[DÍA]=ProgramaciónDeClase[[#Headers],[MARTES]])*(ROUNDDOWN($B17,10)>=ROUNDDOWN(ListaDeClase[HORA DE INICIO],10))*($B17<=ListaDeClase[HORA DE FINALIZACIÓN]),ListaDeClase[ÚNICO]),ListaDeClase[ÚNICO],0),2),0)","v":"HPE-295"},{"$f":"IFERROR(INDEX(ListaDeClase[],MATCH(SUMPRODUCT((ListaDeClase[DÍA]=ProgramaciónDeClase[[#Headers],[MIÉRCOLES]])*(ROUNDDOWN($B17,10)>=ROUNDDOWN(ListaDeClase[HORA DE INICIO],10))*($B17<=ListaDeClase[HORA DE FINALIZACIÓN]),ListaDeClase[ÚNICO]),ListaDeClase[ÚNICO],0),2),0)","v":0},{"$f":"IFERROR(INDEX(ListaDeClase[],MATCH(SUMPRODUCT((ListaDeClase[DÍA]=ProgramaciónDeClase[[#Headers],[JUEVES]])*(ROUNDDOWN($B17,10)>=ROUNDDOWN(ListaDeClase[HORA DE INICIO],10))*($B17<=ListaDeClase[HORA DE FINALIZACIÓN]),ListaDeClase[ÚNICO]),ListaDeClase[ÚNICO],0),2),0)","v":"HPE-295"},{"$f":"IFERROR(INDEX(ListaDeClase[],MATCH(SUMPRODUCT((ListaDeClase[DÍA]=ProgramaciónDeClase[[#Headers],[VIERNES]])*(ROUNDDOWN($B17,10)>=ROUNDDOWN(ListaDeClase[HORA DE INICIO],10))*($B17<=ListaDeClase[HORA DE FINALIZACIÓN]),ListaDeClase[ÚNICO]),ListaDeClase[ÚNICO],0),2),0)","v":0},{"$f":"IFERROR(INDEX(ListaDeClase[],MATCH(SUMPRODUCT((ListaDeClase[DÍA]=ProgramaciónDeClase[[#Headers],[SÁBADO]])*(ROUNDDOWN($B17,10)>=ROUNDDOWN(ListaDeClase[HORA DE INICIO],10))*($B17<=ListaDeClase[HORA DE FINALIZACIÓN]),ListaDeClase[ÚNICO]),ListaDeClase[ÚNICO],0),2),0)","v":0}]
[null,"11:30:00",{"$f":"IFERROR(INDEX(ListaDeClase[],MATCH(SUMPRODUCT((ListaDeClase[DÍA]=ProgramaciónDeClase[[#Headers],[DOMINGO]])*(ROUNDDOWN($B18,10)>=ROUNDDOWN(ListaDeClase[HORA DE INICIO],10))*($B18<=ListaDeClase[HORA DE FINALIZACIÓN]),ListaDeClase[ÚNICO]),ListaDeClase[ÚNICO],0),2),0)","v":0},{"$f":"IFERROR(INDEX(ListaDeClase[],MATCH(SUMPRODUCT((ListaDeClase[DÍA]=ProgramaciónDeClase[[#Headers],[LUNES]])*(ROUNDDOWN($B18,10)>=ROUNDDOWN(ListaDeClase[HORA DE INICIO],10))*($B18<=ListaDeClase[HORA DE FINALIZACIÓN]),ListaDeClase[ÚNICO]),ListaDeClase[ÚNICO],0),2),0)","v":0},{"$f":"IFERROR(INDEX(ListaDeClase[],MATCH(SUMPRODUCT((ListaDeClase[DÍA]=ProgramaciónDeClase[[#Headers],[MARTES]])*(ROUNDDOWN($B18,10)>=ROUNDDOWN(ListaDeClase[HORA DE INICIO],10))*($B18<=ListaDeClase[HORA DE FINALIZACIÓN]),ListaDeClase[ÚNICO]),ListaDeClase[ÚNICO],0),2),0)","v":"HPE-295"},{"$f":"IFERROR(INDEX(ListaDeClase[],MATCH(SUMPRODUCT((ListaDeClase[DÍA]=ProgramaciónDeClase[[#Headers],[MIÉRCOLES]])*(ROUNDDOWN($B18,10)>=ROUNDDOWN(ListaDeClase[HORA DE INICIO],10))*($B18<=ListaDeClase[HORA DE FINALIZACIÓN]),ListaDeClase[ÚNICO]),ListaDeClase[ÚNICO],0),2),0)","v":0},{"$f":"IFERROR(INDEX(ListaDeClase[],MATCH(SUMPRODUCT((ListaDeClase[DÍA]=ProgramaciónDeClase[[#Headers],[JUEVES]])*(ROUNDDOWN($B18,10)>=ROUNDDOWN(ListaDeClase[HORA DE INICIO],10))*($B18<=ListaDeClase[HORA DE FINALIZACIÓN]),ListaDeClase[ÚNICO]),ListaDeClase[ÚNICO],0),2),0)","v":"HPE-295"},{"$f":"IFERROR(INDEX(ListaDeClase[],MATCH(SUMPRODUCT((ListaDeClase[DÍA]=ProgramaciónDeClase[[#Headers],[VIERNES]])*(ROUNDDOWN($B18,10)>=ROUNDDOWN(ListaDeClase[HORA DE INICIO],10))*($B18<=ListaDeClase[HORA DE FINALIZACIÓN]),ListaDeClase[ÚNICO]),ListaDeClase[ÚNICO],0),2),0)","v":0},{"$f":"IFERROR(INDEX(ListaDeClase[],MATCH(SUMPRODUCT((ListaDeClase[DÍA]=ProgramaciónDeClase[[#Headers],[SÁBADO]])*(ROUNDDOWN($B18,10)>=ROUNDDOWN(ListaDeClase[HORA DE INICIO],10))*($B18<=ListaDeClase[HORA DE FINALIZACIÓN]),ListaDeClase[ÚNICO]),ListaDeClase[ÚNICO],0),2),0)","v":0}]
[null,"11:45:00",{"$f":"IFERROR(INDEX(ListaDeClase[],MATCH(SUMPRODUCT((ListaDeClase[DÍA]=ProgramaciónDeClase[[#Headers],[DOMINGO]])*(ROUNDDOWN($B19,10)>=ROUNDDOWN(ListaDeClase[HORA DE INICIO],10))*($B19<=ListaDeClase[HORA DE FINALIZACIÓN]),ListaDeClase[ÚNICO]),ListaDeClase[ÚNICO],0),2),0)","v":0},{"$f":"IFERROR(INDEX(ListaDeClase[],MATCH(SUMPRODUCT((ListaDeClase[DÍA]=ProgramaciónDeClase[[#Headers],[LUNES]])*(ROUNDDOWN($B19,10)>=ROUNDDOWN(ListaDeClase[HORA DE INICIO],10))*($B19<=ListaDeClase[HORA DE FINALIZACIÓN]),ListaDeClase[ÚNICO]),ListaDeClase[ÚNICO],0),2),0)","v":0},{"$f":"IFERROR(INDEX(ListaDeClase[],MATCH(SUMPRODUCT((ListaDeClase[DÍA]=ProgramaciónDeClase[[#Headers],[MARTES]])*(ROUNDDOWN($B19,10)>=ROUNDDOWN(ListaDeClase[HORA DE INICIO],10))*($B19<=ListaDeClase[HORA DE FINALIZACIÓN]),ListaDeClase[ÚNICO]),ListaDeClase[ÚNICO],0),2),0)","v":"HPE-295"},{"$f":"IFERROR(INDEX(ListaDeClase[],MATCH(SUMPRODUCT((ListaDeClase[DÍA]=ProgramaciónDeClase[[#Headers],[MIÉRCOLES]])*(ROUNDDOWN($B19,10)>=ROUNDDOWN(ListaDeClase[HORA DE INICIO],10))*($B19<=ListaDeClase[HORA DE FINALIZACIÓN]),ListaDeClase[ÚNICO]),ListaDeClase[ÚNICO],0),2),0)","v":0},{"$f":"IFERROR(INDEX(ListaDeClase[],MATCH(SUMPRODUCT((ListaDeClase[DÍA]=ProgramaciónDeClase[[#Headers],[JUEVES]])*(ROUNDDOWN($B19,10)>=ROUNDDOWN(ListaDeClase[HORA DE INICIO],10))*($B19<=ListaDeClase[HORA DE FINALIZACIÓN]),ListaDeClase[ÚNICO]),ListaDeClase[ÚNICO],0),2),0)","v":"HPE-295"},{"$f":"IFERROR(INDEX(ListaDeClase[],MATCH(SUMPRODUCT((ListaDeClase[DÍA]=ProgramaciónDeClase[[#Headers],[VIERNES]])*(ROUNDDOWN($B19,10)>=ROUNDDOWN(ListaDeClase[HORA DE INICIO],10))*($B19<=ListaDeClase[HORA DE FINALIZACIÓN]),ListaDeClase[ÚNICO]),ListaDeClase[ÚNICO],0),2),0)","v":0},{"$f":"IFERROR(INDEX(ListaDeClase[],MATCH(SUMPRODUCT((ListaDeClase[DÍA]=ProgramaciónDeClase[[#Headers],[SÁBADO]])*(ROUNDDOWN($B19,10)>=ROUNDDOWN(ListaDeClase[HORA DE INICIO],10))*($B19<=ListaDeClase[HORA DE FINALIZACIÓN]),ListaDeClase[ÚNICO]),ListaDeClase[ÚNICO],0),2),0)","v":0}]
[null,"12:00:00",{"$f":"IFERROR(INDEX(ListaDeClase[],MATCH(SUMPRODUCT((ListaDeClase[DÍA]=ProgramaciónDeClase[[#Headers],[DOMINGO]])*(ROUNDDOWN($B20,10)>=ROUNDDOWN(ListaDeClase[HORA DE INICIO],10))*($B20<=ListaDeClase[HORA DE FINALIZACIÓN]),ListaDeClase[ÚNICO]),ListaDeClase[ÚNICO],0),2),0)","v":0},{"$f":"IFERROR(INDEX(ListaDeClase[],MATCH(SUMPRODUCT((ListaDeClase[DÍA]=ProgramaciónDeClase[[#Headers],[LUNES]])*(ROUNDDOWN($B20,10)>=ROUNDDOWN(ListaDeClase[HORA DE INICIO],10))*($B20<=ListaDeClase[HORA DE FINALIZACIÓN]),ListaDeClase[ÚNICO]),ListaDeClase[ÚNICO],0),2),0)","v":0},{"$f":"IFERROR(INDEX(ListaDeClase[],MATCH(SUMPRODUCT((ListaDeClase[DÍA]=ProgramaciónDeClase[[#Headers],[MARTES]])*(ROUNDDOWN($B20,10)>=ROUNDDOWN(ListaDeClase[HORA DE INICIO],10))*($B20<=ListaDeClase[HORA DE FINALIZACIÓN]),ListaDeClase[ÚNICO]),ListaDeClase[ÚNICO],0),2),0)","v":"HPE-295"},{"$f":"IFERROR(INDEX(ListaDeClase[],MATCH(SUMPRODUCT((ListaDeClase[DÍA]=ProgramaciónDeClase[[#Headers],[MIÉRCOLES]])*(ROUNDDOWN($B20,10)>=ROUNDDOWN(ListaDeClase[HORA DE INICIO],10))*($B20<=ListaDeClase[HORA DE FINALIZACIÓN]),ListaDeClase[ÚNICO]),ListaDeClase[ÚNICO],0),2),0)","v":0},{"$f":"IFERROR(INDEX(ListaDeClase[],MATCH(SUMPRODUCT((ListaDeClase[DÍA]=ProgramaciónDeClase[[#Headers],[JUEVES]])*(ROUNDDOWN($B20,10)>=ROUNDDOWN(ListaDeClase[HORA DE INICIO],10))*($B20<=ListaDeClase[HORA DE FINALIZACIÓN]),ListaDeClase[ÚNICO]),ListaDeClase[ÚNICO],0),2),0)","v":"HPE-295"},{"$f":"IFERROR(INDEX(ListaDeClase[],MATCH(SUMPRODUCT((ListaDeClase[DÍA]=ProgramaciónDeClase[[#Headers],[VIERNES]])*(ROUNDDOWN($B20,10)>=ROUNDDOWN(ListaDeClase[HORA DE INICIO],10))*($B20<=ListaDeClase[HORA DE FINALIZACIÓN]),ListaDeClase[ÚNICO]),ListaDeClase[ÚNICO],0),2),0)","v":0},{"$f":"IFERROR(INDEX(ListaDeClase[],MATCH(SUMPRODUCT((ListaDeClase[DÍA]=ProgramaciónDeClase[[#Headers],[SÁBADO]])*(ROUNDDOWN($B20,10)>=ROUNDDOWN(ListaDeClase[HORA DE INICIO],10))*($B20<=ListaDeClase[HORA DE FINALIZACIÓN]),ListaDeClase[ÚNICO]),ListaDeClase[ÚNICO],0),2),0)","v":0}]
[null,"12:15:00",{"$f":"IFERROR(INDEX(ListaDeClase[],MATCH(SUMPRODUCT((ListaDeClase[DÍA]=ProgramaciónDeClase[[#Headers],[DOMINGO]])*(ROUNDDOWN($B21,10)>=ROUNDDOWN(ListaDeClase[HORA DE INICIO],10))*($B21<=ListaDeClase[HORA DE FINALIZACIÓN]),ListaDeClase[ÚNICO]),ListaDeClase[ÚNICO],0),2),0)","v":0},{"$f":"IFERROR(INDEX(ListaDeClase[],MATCH(SUMPRODUCT((ListaDeClase[DÍA]=ProgramaciónDeClase[[#Headers],[LUNES]])*(ROUNDDOWN($B21,10)>=ROUNDDOWN(ListaDeClase[HORA DE INICIO],10))*($B21<=ListaDeClase[HORA DE FINALIZACIÓN]),ListaDeClase[ÚNICO]),ListaDeClase[ÚNICO],0),2),0)","v":0},{"$f":"IFERROR(INDEX(ListaDeClase[],MATCH(SUMPRODUCT((ListaDeClase[DÍA]=ProgramaciónDeClase[[#Headers],[MARTES]])*(ROUNDDOWN($B21,10)>=ROUNDDOWN(ListaDeClase[HORA DE INICIO],10))*($B21<=ListaDeClase[HORA DE FINALIZACIÓN]),ListaDeClase[ÚNICO]),ListaDeClase[ÚNICO],0),2),0)","v":0},{"$f":"IFERROR(INDEX(ListaDeClase[],MATCH(SUMPRODUCT((ListaDeClase[DÍA]=ProgramaciónDeClase[[#Headers],[MIÉRCOLES]])*(ROUNDDOWN($B21,10)>=ROUNDDOWN(ListaDeClase[HORA DE INICIO],10))*($B21<=ListaDeClase[HORA DE FINALIZACIÓN]),ListaDeClase[ÚNICO]),ListaDeClase[ÚNICO],0),2),0)","v":0},{"$f":"IFERROR(INDEX(ListaDeClase[],MATCH(SUMPRODUCT((ListaDeClase[DÍA]=ProgramaciónDeClase[[#Headers],[JUEVES]])*(ROUNDDOWN($B21,10)>=ROUNDDOWN(ListaDeClase[HORA DE INICIO],10))*($B21<=ListaDeClase[HORA DE FINALIZACIÓN]),ListaDeClase[ÚNICO]),ListaDeClase[ÚNICO],0),2),0)","v":0},{"$f":"IFERROR(INDEX(ListaDeClase[],MATCH(SUMPRODUCT((ListaDeClase[DÍA]=ProgramaciónDeClase[[#Headers],[VIERNES]])*(ROUNDDOWN($B21,10)>=ROUNDDOWN(ListaDeClase[HORA DE INICIO],10))*($B21<=ListaDeClase[HORA DE FINALIZACIÓN]),ListaDeClase[ÚNICO]),ListaDeClase[ÚNICO],0),2),0)","v":0},{"$f":"IFERROR(INDEX(ListaDeClase[],MATCH(SUMPRODUCT((ListaDeClase[DÍA]=ProgramaciónDeClase[[#Headers],[SÁBADO]])*(ROUNDDOWN($B21,10)>=ROUNDDOWN(ListaDeClase[HORA DE INICIO],10))*($B21<=ListaDeClase[HORA DE FINALIZACIÓN]),ListaDeClase[ÚNICO]),ListaDeClase[ÚNICO],0),2),0)","v":0}]
[null,"12:30:00",{"$f":"IFERROR(INDEX(ListaDeClase[],MATCH(SUMPRODUCT((ListaDeClase[DÍA]=ProgramaciónDeClase[[#Headers],[DOMINGO]])*(ROUNDDOWN($B22,10)>=ROUNDDOWN(ListaDeClase[HORA DE INICIO],10))*($B22<=ListaDeClase[HORA DE FINALIZACIÓN]),ListaDeClase[ÚNICO]),ListaDeClase[ÚNICO],0),2),0)","v":0},{"$f":"IFERROR(INDEX(ListaDeClase[],MATCH(SUMPRODUCT((ListaDeClase[DÍA]=ProgramaciónDeClase[[#Headers],[LUNES]])*(ROUNDDOWN($B22,10)>=ROUNDDOWN(ListaDeClase[HORA DE INICIO],10))*($B22<=ListaDeClase[HORA DE FINALIZACIÓN]),ListaDeClase[ÚNICO]),ListaDeClase[ÚNICO],0),2),0)","v":0},{"$f":"IFERROR(INDEX(ListaDeClase[],MATCH(SUMPRODUCT((ListaDeClase[DÍA]=ProgramaciónDeClase[[#Headers],[MARTES]])*(ROUNDDOWN($B22,10)>=ROUNDDOWN(ListaDeClase[HORA DE INICIO],10))*($B22<=ListaDeClase[HORA DE FINALIZACIÓN]),ListaDeClase[ÚNICO]),ListaDeClase[ÚNICO],0),2),0)","v":0},{"$f":"IFERROR(INDEX(ListaDeClase[],MATCH(SUMPRODUCT((ListaDeClase[DÍA]=ProgramaciónDeClase[[#Headers],[MIÉRCOLES]])*(ROUNDDOWN($B22,10)>=ROUNDDOWN(ListaDeClase[HORA DE INICIO],10))*($B22<=ListaDeClase[HORA DE FINALIZACIÓN]),ListaDeClase[ÚNICO]),ListaDeClase[ÚNICO],0),2),0)","v":0},{"$f":"IFERROR(INDEX(ListaDeClase[],MATCH(SUMPRODUCT((ListaDeClase[DÍA]=ProgramaciónDeClase[[#Headers],[JUEVES]])*(ROUNDDOWN($B22,10)>=ROUNDDOWN(ListaDeClase[HORA DE INICIO],10))*($B22<=ListaDeClase[HORA DE FINALIZACIÓN]),ListaDeClase[ÚNICO]),ListaDeClase[ÚNICO],0),2),0)","v":0},{"$f":"IFERROR(INDEX(ListaDeClase[],MATCH(SUMPRODUCT((ListaDeClase[DÍA]=ProgramaciónDeClase[[#Headers],[VIERNES]])*(ROUNDDOWN($B22,10)>=ROUNDDOWN(ListaDeClase[HORA DE INICIO],10))*($B22<=ListaDeClase[HORA DE FINALIZACIÓN]),ListaDeClase[ÚNICO]),ListaDeClase[ÚNICO],0),2),0)","v":0},{"$f":"IFERROR(INDEX(ListaDeClase[],MATCH(SUMPRODUCT((ListaDeClase[DÍA]=ProgramaciónDeClase[[#Headers],[SÁBADO]])*(ROUNDDOWN($B22,10)>=ROUNDDOWN(ListaDeClase[HORA DE INICIO],10))*($B22<=ListaDeClase[HORA DE FINALIZACIÓN]),ListaDeClase[ÚNICO]),ListaDeClase[ÚNICO],0),2),0)","v":0}]
[null,"12:45:00",{"$f":"IFERROR(INDEX(ListaDeClase[],MATCH(SUMPRODUCT((ListaDeClase[DÍA]=ProgramaciónDeClase[[#Headers],[DOMINGO]])*(ROUNDDOWN($B23,10)>=ROUNDDOWN(ListaDeClase[HORA DE INICIO],10))*($B23<=ListaDeClase[HORA DE FINALIZACIÓN]),ListaDeClase[ÚNICO]),ListaDeClase[ÚNICO],0),2),0)","v":0},{"$f":"IFERROR(INDEX(ListaDeClase[],MATCH(SUMPRODUCT((ListaDeClase[DÍA]=ProgramaciónDeClase[[#Headers],[LUNES]])*(ROUNDDOWN($B23,10)>=ROUNDDOWN(ListaDeClase[HORA DE INICIO],10))*($B23<=ListaDeClase[HORA DE FINALIZACIÓN]),ListaDeClase[ÚNICO]),ListaDeClase[ÚNICO],0),2),0)","v":0},{"$f":"IFERROR(INDEX(ListaDeClase[],MATCH(SUMPRODUCT((ListaDeClase[DÍA]=ProgramaciónDeClase[[#Headers],[MARTES]])*(ROUNDDOWN($B23,10)>=ROUNDDOWN(ListaDeClase[HORA DE INICIO],10))*($B23<=ListaDeClase[HORA DE FINALIZACIÓN]),ListaDeClase[ÚNICO]),ListaDeClase[ÚNICO],0),2),0)","v":0},{"$f":"IFERROR(INDEX(ListaDeClase[],MATCH(SUMPRODUCT((ListaDeClase[DÍA]=ProgramaciónDeClase[[#Headers],[MIÉRCOLES]])*(ROUNDDOWN($B23,10)>=ROUNDDOWN(ListaDeClase[HORA DE INICIO],10))*($B23<=ListaDeClase[HORA DE FINALIZACIÓN]),ListaDeClase[ÚNICO]),ListaDeClase[ÚNICO],0),2),0)","v":0},{"$f":"IFERROR(INDEX(ListaDeClase[],MATCH(SUMPRODUCT((ListaDeClase[DÍA]=ProgramaciónDeClase[[#Headers],[JUEVES]])*(ROUNDDOWN($B23,10)>=ROUNDDOWN(ListaDeClase[HORA DE INICIO],10))*($B23<=ListaDeClase[HORA DE FINALIZACIÓN]),ListaDeClase[ÚNICO]),ListaDeClase[ÚNICO],0),2),0)","v":0},{"$f":"IFERROR(INDEX(ListaDeClase[],MATCH(SUMPRODUCT((ListaDeClase[DÍA]=ProgramaciónDeClase[[#Headers],[VIERNES]])*(ROUNDDOWN($B23,10)>=ROUNDDOWN(ListaDeClase[HORA DE INICIO],10))*($B23<=ListaDeClase[HORA DE FINALIZACIÓN]),ListaDeClase[ÚNICO]),ListaDeClase[ÚNICO],0),2),0)","v":0},{"$f":"IFERROR(INDEX(ListaDeClase[],MATCH(SUMPRODUCT((ListaDeClase[DÍA]=ProgramaciónDeClase[[#Headers],[SÁBADO]])*(ROUNDDOWN($B23,10)>=ROUNDDOWN(ListaDeClase[HORA DE INICIO],10))*($B23<=ListaDeClase[HORA DE FINALIZACIÓN]),ListaDeClase[ÚNICO]),ListaDeClase[ÚNICO],0),2),0)","v":0}]
[null,"13:00:00",{"$f":"IFERROR(INDEX(ListaDeClase[],MATCH(SUMPRODUCT((ListaDeClase[DÍA]=ProgramaciónDeClase[[#Headers],[DOMINGO]])*(ROUNDDOWN($B24,10)>=ROUNDDOWN(ListaDeClase[HORA DE INICIO],10))*($B24<=ListaDeClase[HORA DE FINALIZACIÓN]),ListaDeClase[ÚNICO]),ListaDeClase[ÚNICO],0),2),0)","v":0},{"$f":"IFERROR(INDEX(ListaDeClase[],MATCH(SUMPRODUCT((ListaDeClase[DÍA]=ProgramaciónDeClase[[#Headers],[LUNES]])*(ROUNDDOWN($B24,10)>=ROUNDDOWN(ListaDeClase[HORA DE INICIO],10))*($B24<=ListaDeClase[HORA DE FINALIZACIÓN]),ListaDeClase[ÚNICO]),ListaDeClase[ÚNICO],0),2),0)","v":"WR-121"},{"$f":"IFERROR(INDEX(ListaDeClase[],MATCH(SUMPRODUCT((ListaDeClase[DÍA]=ProgramaciónDeClase[[#Headers],[MARTES]])*(ROUNDDOWN($B24,10)>=ROUNDDOWN(ListaDeClase[HORA DE INICIO],10))*($B24<=ListaDeClase[HORA DE FINALIZACIÓN]),ListaDeClase[ÚNICO]),ListaDeClase[ÚNICO],0),2),0)","v":0},{"$f":"IFERROR(INDEX(ListaDeClase[],MATCH(SUMPRODUCT((ListaDeClase[DÍA]=ProgramaciónDeClase[[#Headers],[MIÉRCOLES]])*(ROUNDDOWN($B24,10)>=ROUNDDOWN(ListaDeClase[HORA DE INICIO],10))*($B24<=ListaDeClase[HORA DE FINALIZACIÓN]),ListaDeClase[ÚNICO]),ListaDeClase[ÚNICO],0),2),0)","v":"WR-121"},{"$f":"IFERROR(INDEX(ListaDeClase[],MATCH(SUMPRODUCT((ListaDeClase[DÍA]=ProgramaciónDeClase[[#Headers],[JUEVES]])*(ROUNDDOWN($B24,10)>=ROUNDDOWN(ListaDeClase[HORA DE INICIO],10))*($B24<=ListaDeClase[HORA DE FINALIZACIÓN]),ListaDeClase[ÚNICO]),ListaDeClase[ÚNICO],0),2),0)","v":0},{"$f":"IFERROR(INDEX(ListaDeClase[],MATCH(SUMPRODUCT((ListaDeClase[DÍA]=ProgramaciónDeClase[[#Headers],[VIERNES]])*(ROUNDDOWN($B24,10)>=ROUNDDOWN(ListaDeClase[HORA DE INICIO],10))*($B24<=ListaDeClase[HORA DE FINALIZACIÓN]),ListaDeClase[ÚNICO]),ListaDeClase[ÚNICO],0),2),0)","v":0},{"$f":"IFERROR(INDEX(ListaDeClase[],MATCH(SUMPRODUCT((ListaDeClase[DÍA]=ProgramaciónDeClase[[#Headers],[SÁBADO]])*(ROUNDDOWN($B24,10)>=ROUNDDOWN(ListaDeClase[HORA DE INICIO],10))*($B24<=ListaDeClase[HORA DE FINALIZACIÓN]),ListaDeClase[ÚNICO]),ListaDeClase[ÚNICO],0),2),0)","v":0}]
[null,"13:15:00",{"$f":"IFERROR(INDEX(ListaDeClase[],MATCH(SUMPRODUCT((ListaDeClase[DÍA]=ProgramaciónDeClase[[#Headers],[DOMINGO]])*(ROUNDDOWN($B25,10)>=ROUNDDOWN(ListaDeClase[HORA DE INICIO],10))*($B25<=ListaDeClase[HORA DE FINALIZACIÓN]),ListaDeClase[ÚNICO]),ListaDeClase[ÚNICO],0),2),0)","v":0},{"$f":"IFERROR(INDEX(ListaDeClase[],MATCH(SUMPRODUCT((ListaDeClase[DÍA]=ProgramaciónDeClase[[#Headers],[LUNES]])*(ROUNDDOWN($B25,10)>=ROUNDDOWN(ListaDeClase[HORA DE INICIO],10))*($B25<=ListaDeClase[HORA DE FINALIZACIÓN]),ListaDeClase[ÚNICO]),ListaDeClase[ÚNICO],0),2),0)","v":"WR-121"},{"$f":"IFERROR(INDEX(ListaDeClase[],MATCH(SUMPRODUCT((ListaDeClase[DÍA]=ProgramaciónDeClase[[#Headers],[MARTES]])*(ROUNDDOWN($B25,10)>=ROUNDDOWN(ListaDeClase[HORA DE INICIO],10))*($B25<=ListaDeClase[HORA DE FINALIZACIÓN]),ListaDeClase[ÚNICO]),ListaDeClase[ÚNICO],0),2),0)","v":0},{"$f":"IFERROR(INDEX(ListaDeClase[],MATCH(SUMPRODUCT((ListaDeClase[DÍA]=ProgramaciónDeClase[[#Headers],[MIÉRCOLES]])*(ROUNDDOWN($B25,10)>=ROUNDDOWN(ListaDeClase[HORA DE INICIO],10))*($B25<=ListaDeClase[HORA DE FINALIZACIÓN]),ListaDeClase[ÚNICO]),ListaDeClase[ÚNICO],0),2),0)","v":"WR-121"},{"$f":"IFERROR(INDEX(ListaDeClase[],MATCH(SUMPRODUCT((ListaDeClase[DÍA]=ProgramaciónDeClase[[#Headers],[JUEVES]])*(ROUNDDOWN($B25,10)>=ROUNDDOWN(ListaDeClase[HORA DE INICIO],10))*($B25<=ListaDeClase[HORA DE FINALIZACIÓN]),ListaDeClase[ÚNICO]),ListaDeClase[ÚNICO],0),2),0)","v":0},{"$f":"IFERROR(INDEX(ListaDeClase[],MATCH(SUMPRODUCT((ListaDeClase[DÍA]=ProgramaciónDeClase[[#Headers],[VIERNES]])*(ROUNDDOWN($B25,10)>=ROUNDDOWN(ListaDeClase[HORA DE INICIO],10))*($B25<=ListaDeClase[HORA DE FINALIZACIÓN]),ListaDeClase[ÚNICO]),ListaDeClase[ÚNICO],0),2),0)","v":0},{"$f":"IFERROR(INDEX(ListaDeClase[],MATCH(SUMPRODUCT((ListaDeClase[DÍA]=ProgramaciónDeClase[[#Headers],[SÁBADO]])*(ROUNDDOWN($B25,10)>=ROUNDDOWN(ListaDeClase[HORA DE INICIO],10))*($B25<=ListaDeClase[HORA DE FINALIZACIÓN]),ListaDeClase[ÚNICO]),ListaDeClase[ÚNICO],0),2),0)","v":0}]
[null,"13:30:00",{"$f":"IFERROR(INDEX(ListaDeClase[],MATCH(SUMPRODUCT((ListaDeClase[DÍA]=ProgramaciónDeClase[[#Headers],[DOMINGO]])*(ROUNDDOWN($B26,10)>=ROUNDDOWN(ListaDeClase[HORA DE INICIO],10))*($B26<=ListaDeClase[HORA DE FINALIZACIÓN]),ListaDeClase[ÚNICO]),ListaDeClase[ÚNICO],0),2),0)","v":0},{"$f":"IFERROR(INDEX(ListaDeClase[],MATCH(SUMPRODUCT((ListaDeClase[DÍA]=ProgramaciónDeClase[[#Headers],[LUNES]])*(ROUNDDOWN($B26,10)>=ROUNDDOWN(ListaDeClase[HORA DE INICIO],10))*($B26<=ListaDeClase[HORA DE FINALIZACIÓN]),ListaDeClase[ÚNICO]),ListaDeClase[ÚNICO],0),2),0)","v":"WR-121"},{"$f":"IFERROR(INDEX(ListaDeClase[],MATCH(SUMPRODUCT((ListaDeClase[DÍA]=ProgramaciónDeClase[[#Headers],[MARTES]])*(ROUNDDOWN($B26,10)>=ROUNDDOWN(ListaDeClase[HORA DE INICIO],10))*($B26<=ListaDeClase[HORA DE FINALIZACIÓN]),ListaDeClase[ÚNICO]),ListaDeClase[ÚNICO],0),2),0)","v":0},{"$f":"IFERROR(INDEX(ListaDeClase[],MATCH(SUMPRODUCT((ListaDeClase[DÍA]=ProgramaciónDeClase[[#Headers],[MIÉRCOLES]])*(ROUNDDOWN($B26,10)>=ROUNDDOWN(ListaDeClase[HORA DE INICIO],10))*($B26<=ListaDeClase[HORA DE FINALIZACIÓN]),ListaDeClase[ÚNICO]),ListaDeClase[ÚNICO],0),2),0)","v":"WR-121"},{"$f":"IFERROR(INDEX(ListaDeClase[],MATCH(SUMPRODUCT((ListaDeClase[DÍA]=ProgramaciónDeClase[[#Headers],[JUEVES]])*(ROUNDDOWN($B26,10)>=ROUNDDOWN(ListaDeClase[HORA DE INICIO],10))*($B26<=ListaDeClase[HORA DE FINALIZACIÓN]),ListaDeClase[ÚNICO]),ListaDeClase[ÚNICO],0),2),0)","v":0},{"$f":"IFERROR(INDEX(ListaDeClase[],MATCH(SUMPRODUCT((ListaDeClase[DÍA]=ProgramaciónDeClase[[#Headers],[VIERNES]])*(ROUNDDOWN($B26,10)>=ROUNDDOWN(ListaDeClase[HORA DE INICIO],10))*($B26<=ListaDeClase[HORA DE FINALIZACIÓN]),ListaDeClase[ÚNICO]),ListaDeClase[ÚNICO],0),2),0)","v":0},{"$f":"IFERROR(INDEX(ListaDeClase[],MATCH(SUMPRODUCT((ListaDeClase[DÍA]=ProgramaciónDeClase[[#Headers],[SÁBADO]])*(ROUNDDOWN($B26,10)>=ROUNDDOWN(ListaDeClase[HORA DE INICIO],10))*($B26<=ListaDeClase[HORA DE FINALIZACIÓN]),ListaDeClase[ÚNICO]),ListaDeClase[ÚNICO],0),2),0)","v":0}]
[null,"13:45:00",{"$f":"IFERROR(INDEX(ListaDeClase[],MATCH(SUMPRODUCT((ListaDeClase[DÍA]=ProgramaciónDeClase[[#Headers],[DOMINGO]])*(ROUNDDOWN($B27,10)>=ROUNDDOWN(ListaDeClase[HORA DE INICIO],10))*($B27<=ListaDeClase[HORA DE FINALIZACIÓN]),ListaDeClase[ÚNICO]),ListaDeClase[ÚNICO],0),2),0)","v":0},{"$f":"IFERROR(INDEX(ListaDeClase[],MATCH(SUMPRODUCT((ListaDeClase[DÍA]=ProgramaciónDeClase[[#Headers],[LUNES]])*(ROUNDDOWN($B27,10)>=ROUNDDOWN(ListaDeClase[HORA DE INICIO],10))*($B27<=ListaDeClase[HORA DE FINALIZACIÓN]),ListaDeClase[ÚNICO]),ListaDeClase[ÚNICO],0),2),0)","v":"WR-121"},{"$f":"IFERROR(INDEX(ListaDeClase[],MATCH(SUMPRODUCT((ListaDeClase[DÍA]=ProgramaciónDeClase[[#Headers],[MARTES]])*(ROUNDDOWN($B27,10)>=ROUNDDOWN(ListaDeClase[HORA DE INICIO],10))*($B27<=ListaDeClase[HORA DE FINALIZACIÓN]),ListaDeClase[ÚNICO]),ListaDeClase[ÚNICO],0),2),0)","v":0},{"$f":"IFERROR(INDEX(ListaDeClase[],MATCH(SUMPRODUCT((ListaDeClase[DÍA]=ProgramaciónDeClase[[#Headers],[MIÉRCOLES]])*(ROUNDDOWN($B27,10)>=ROUNDDOWN(ListaDeClase[HORA DE INICIO],10))*($B27<=ListaDeClase[HORA DE FINALIZACIÓN]),ListaDeClase[ÚNICO]),ListaDeClase[ÚNICO],0),2),0)","v":"WR-121"},{"$f":"IFERROR(INDEX(ListaDeClase[],MATCH(SUMPRODUCT((ListaDeClase[DÍA]=ProgramaciónDeClase[[#Headers],[JUEVES]])*(ROUNDDOWN($B27,10)>=ROUNDDOWN(ListaDeClase[HORA DE INICIO],10))*($B27<=ListaDeClase[HORA DE FINALIZACIÓN]),ListaDeClase[ÚNICO]),ListaDeClase[ÚNICO],0),2),0)","v":0},{"$f":"IFERROR(INDEX(ListaDeClase[],MATCH(SUMPRODUCT((ListaDeClase[DÍA]=ProgramaciónDeClase[[#Headers],[VIERNES]])*(ROUNDDOWN($B27,10)>=ROUNDDOWN(ListaDeClase[HORA DE INICIO],10))*($B27<=ListaDeClase[HORA DE FINALIZACIÓN]),ListaDeClase[ÚNICO]),ListaDeClase[ÚNICO],0),2),0)","v":0},{"$f":"IFERROR(INDEX(ListaDeClase[],MATCH(SUMPRODUCT((ListaDeClase[DÍA]=ProgramaciónDeClase[[#Headers],[SÁBADO]])*(ROUNDDOWN($B27,10)>=ROUNDDOWN(ListaDeClase[HORA DE INICIO],10))*($B27<=ListaDeClase[HORA DE FINALIZACIÓN]),ListaDeClase[ÚNICO]),ListaDeClase[ÚNICO],0),2),0)","v":0}]
[null,"14:00:00",{"$f":"IFERROR(INDEX(ListaDeClase[],MATCH(SUMPRODUCT((ListaDeClase[DÍA]=ProgramaciónDeClase[[#Headers],[DOMINGO]])*(ROUNDDOWN($B28,10)>=ROUNDDOWN(ListaDeClase[HORA DE INICIO],10))*($B28<=ListaDeClase[HORA DE FINALIZACIÓN]),ListaDeClase[ÚNICO]),ListaDeClase[ÚNICO],0),2),0)","v":0},{"$f":"IFERROR(INDEX(ListaDeClase[],MATCH(SUMPRODUCT((ListaDeClase[DÍA]=ProgramaciónDeClase[[#Headers],[LUNES]])*(ROUNDDOWN($B28,10)>=ROUNDDOWN(ListaDeClase[HORA DE INICIO],10))*($B28<=ListaDeClase[HORA DE FINALIZACIÓN]),ListaDeClase[ÚNICO]),ListaDeClase[ÚNICO],0),2),0)","v":"WR-121"},{"$f":"IFERROR(INDEX(ListaDeClase[],MATCH(SUMPRODUCT((ListaDeClase[DÍA]=ProgramaciónDeClase[[#Headers],[MARTES]])*(ROUNDDOWN($B28,10)>=ROUNDDOWN(ListaDeClase[HORA DE INICIO],10))*($B28<=ListaDeClase[HORA DE FINALIZACIÓN]),ListaDeClase[ÚNICO]),ListaDeClase[ÚNICO],0),2),0)","v":0},{"$f":"IFERROR(INDEX(ListaDeClase[],MATCH(SUMPRODUCT((ListaDeClase[DÍA]=ProgramaciónDeClase[[#Headers],[MIÉRCOLES]])*(ROUNDDOWN($B28,10)>=ROUNDDOWN(ListaDeClase[HORA DE INICIO],10))*($B28<=ListaDeClase[HORA DE FINALIZACIÓN]),ListaDeClase[ÚNICO]),ListaDeClase[ÚNICO],0),2),0)","v":"WR-121"},{"$f":"IFERROR(INDEX(ListaDeClase[],MATCH(SUMPRODUCT((ListaDeClase[DÍA]=ProgramaciónDeClase[[#Headers],[JUEVES]])*(ROUNDDOWN($B28,10)>=ROUNDDOWN(ListaDeClase[HORA DE INICIO],10))*($B28<=ListaDeClase[HORA DE FINALIZACIÓN]),ListaDeClase[ÚNICO]),ListaDeClase[ÚNICO],0),2),0)","v":0},{"$f":"IFERROR(INDEX(ListaDeClase[],MATCH(SUMPRODUCT((ListaDeClase[DÍA]=ProgramaciónDeClase[[#Headers],[VIERNES]])*(ROUNDDOWN($B28,10)>=ROUNDDOWN(ListaDeClase[HORA DE INICIO],10))*($B28<=ListaDeClase[HORA DE FINALIZACIÓN]),ListaDeClase[ÚNICO]),ListaDeClase[ÚNICO],0),2),0)","v":0},{"$f":"IFERROR(INDEX(ListaDeClase[],MATCH(SUMPRODUCT((ListaDeClase[DÍA]=ProgramaciónDeClase[[#Headers],[SÁBADO]])*(ROUNDDOWN($B28,10)>=ROUNDDOWN(ListaDeClase[HORA DE INICIO],10))*($B28<=ListaDeClase[HORA DE FINALIZACIÓN]),ListaDeClase[ÚNICO]),ListaDeClase[ÚNICO],0),2),0)","v":0}]
[null,"14:15:00",{"$f":"IFERROR(INDEX(ListaDeClase[],MATCH(SUMPRODUCT((ListaDeClase[DÍA]=ProgramaciónDeClase[[#Headers],[DOMINGO]])*(ROUNDDOWN($B29,10)>=ROUNDDOWN(ListaDeClase[HORA DE INICIO],10))*($B29<=ListaDeClase[HORA DE FINALIZACIÓN]),ListaDeClase[ÚNICO]),ListaDeClase[ÚNICO],0),2),0)","v":0},{"$f":"IFERROR(INDEX(ListaDeClase[],MATCH(SUMPRODUCT((ListaDeClase[DÍA]=ProgramaciónDeClase[[#Headers],[LUNES]])*(ROUNDDOWN($B29,10)>=ROUNDDOWN(ListaDeClase[HORA DE INICIO],10))*($B29<=ListaDeClase[HORA DE FINALIZACIÓN]),ListaDeClase[ÚNICO]),ListaDeClase[ÚNICO],0),2),0)","v":0},{"$f":"IFERROR(INDEX(ListaDeClase[],MATCH(SUMPRODUCT((ListaDeClase[DÍA]=ProgramaciónDeClase[[#Headers],[MARTES]])*(ROUNDDOWN($B29,10)>=ROUNDDOWN(ListaDeClase[HORA DE INICIO],10))*($B29<=ListaDeClase[HORA DE FINALIZACIÓN]),ListaDeClase[ÚNICO]),ListaDeClase[ÚNICO],0),2),0)","v":0},{"$f":"IFERROR(INDEX(ListaDeClase[],MATCH(SUMPRODUCT((ListaDeClase[DÍA]=ProgramaciónDeClase[[#Headers],[MIÉRCOLES]])*(ROUNDDOWN($B29,10)>=ROUNDDOWN(ListaDeClase[HORA DE INICIO],10))*($B29<=ListaDeClase[HORA DE FINALIZACIÓN]),ListaDeClase[ÚNICO]),ListaDeClase[ÚNICO],0),2),0)","v":0},{"$f":"IFERROR(INDEX(ListaDeClase[],MATCH(SUMPRODUCT((ListaDeClase[DÍA]=ProgramaciónDeClase[[#Headers],[JUEVES]])*(ROUNDDOWN($B29,10)>=ROUNDDOWN(ListaDeClase[HORA DE INICIO],10))*($B29<=ListaDeClase[HORA DE FINALIZACIÓN]),ListaDeClase[ÚNICO]),ListaDeClase[ÚNICO],0),2),0)","v":0},{"$f":"IFERROR(INDEX(ListaDeClase[],MATCH(SUMPRODUCT((ListaDeClase[DÍA]=ProgramaciónDeClase[[#Headers],[VIERNES]])*(ROUNDDOWN($B29,10)>=ROUNDDOWN(ListaDeClase[HORA DE INICIO],10))*($B29<=ListaDeClase[HORA DE FINALIZACIÓN]),ListaDeClase[ÚNICO]),ListaDeClase[ÚNICO],0),2),0)","v":0},{"$f":"IFERROR(INDEX(ListaDeClase[],MATCH(SUMPRODUCT((ListaDeClase[DÍA]=ProgramaciónDeClase[[#Headers],[SÁBADO]])*(ROUNDDOWN($B29,10)>=ROUNDDOWN(ListaDeClase[HORA DE INICIO],10))*($B29<=ListaDeClase[HORA DE FINALIZACIÓN]),ListaDeClase[ÚNICO]),ListaDeClase[ÚNICO],0),2),0)","v":0}]
[null,"14:30:00",{"$f":"IFERROR(INDEX(ListaDeClase[],MATCH(SUMPRODUCT((ListaDeClase[DÍA]=ProgramaciónDeClase[[#Headers],[DOMINGO]])*(ROUNDDOWN($B30,10)>=ROUNDDOWN(ListaDeClase[HORA DE INICIO],10))*($B30<=ListaDeClase[HORA DE FINALIZACIÓN]),ListaDeClase[ÚNICO]),ListaDeClase[ÚNICO],0),2),0)","v":0},{"$f":"IFERROR(INDEX(ListaDeClase[],MATCH(SUMPRODUCT((ListaDeClase[DÍA]=ProgramaciónDeClase[[#Headers],[LUNES]])*(ROUNDDOWN($B30,10)>=ROUNDDOWN(ListaDeClase[HORA DE INICIO],10))*($B30<=ListaDeClase[HORA DE FINALIZACIÓN]),ListaDeClase[ÚNICO]),ListaDeClase[ÚNICO],0),2),0)","v":0},{"$f":"IFERROR(INDEX(ListaDeClase[],MATCH(SUMPRODUCT((ListaDeClase[DÍA]=ProgramaciónDeClase[[#Headers],[MARTES]])*(ROUNDDOWN($B30,10)>=ROUNDDOWN(ListaDeClase[HORA DE INICIO],10))*($B30<=ListaDeClase[HORA DE FINALIZACIÓN]),ListaDeClase[ÚNICO]),ListaDeClase[ÚNICO],0),2),0)","v":0},{"$f":"IFERROR(INDEX(ListaDeClase[],MATCH(SUMPRODUCT((ListaDeClase[DÍA]=ProgramaciónDeClase[[#Headers],[MIÉRCOLES]])*(ROUNDDOWN($B30,10)>=ROUNDDOWN(ListaDeClase[HORA DE INICIO],10))*($B30<=ListaDeClase[HORA DE FINALIZACIÓN]),ListaDeClase[ÚNICO]),ListaDeClase[ÚNICO],0),2),0)","v":0},{"$f":"IFERROR(INDEX(ListaDeClase[],MATCH(SUMPRODUCT((ListaDeClase[DÍA]=ProgramaciónDeClase[[#Headers],[JUEVES]])*(ROUNDDOWN($B30,10)>=ROUNDDOWN(ListaDeClase[HORA DE INICIO],10))*($B30<=ListaDeClase[HORA DE FINALIZACIÓN]),ListaDeClase[ÚNICO]),ListaDeClase[ÚNICO],0),2),0)","v":0},{"$f":"IFERROR(INDEX(ListaDeClase[],MATCH(SUMPRODUCT((ListaDeClase[DÍA]=ProgramaciónDeClase[[#Headers],[VIERNES]])*(ROUNDDOWN($B30,10)>=ROUNDDOWN(ListaDeClase[HORA DE INICIO],10))*($B30<=ListaDeClase[HORA DE FINALIZACIÓN]),ListaDeClase[ÚNICO]),ListaDeClase[ÚNICO],0),2),0)","v":0},{"$f":"IFERROR(INDEX(ListaDeClase[],MATCH(SUMPRODUCT((ListaDeClase[DÍA]=ProgramaciónDeClase[[#Headers],[SÁBADO]])*(ROUNDDOWN($B30,10)>=ROUNDDOWN(ListaDeClase[HORA DE INICIO],10))*($B30<=ListaDeClase[HORA DE FINALIZACIÓN]),ListaDeClase[ÚNICO]),ListaDeClase[ÚNICO],0),2),0)","v":0}]
[null,"14:45:00",{"$f":"IFERROR(INDEX(ListaDeClase[],MATCH(SUMPRODUCT((ListaDeClase[DÍA]=ProgramaciónDeClase[[#Headers],[DOMINGO]])*(ROUNDDOWN($B31,10)>=ROUNDDOWN(ListaDeClase[HORA DE INICIO],10))*($B31<=ListaDeClase[HORA DE FINALIZACIÓN]),ListaDeClase[ÚNICO]),ListaDeClase[ÚNICO],0),2),0)","v":0},{"$f":"IFERROR(INDEX(ListaDeClase[],MATCH(SUMPRODUCT((ListaDeClase[DÍA]=ProgramaciónDeClase[[#Headers],[LUNES]])*(ROUNDDOWN($B31,10)>=ROUNDDOWN(ListaDeClase[HORA DE INICIO],10))*($B31<=ListaDeClase[HORA DE FINALIZACIÓN]),ListaDeClase[ÚNICO]),ListaDeClase[ÚNICO],0),2),0)","v":0},{"$f":"IFERROR(INDEX(ListaDeClase[],MATCH(SUMPRODUCT((ListaDeClase[DÍA]=ProgramaciónDeClase[[#Headers],[MARTES]])*(ROUNDDOWN($B31,10)>=ROUNDDOWN(ListaDeClase[HORA DE INICIO],10))*($B31<=ListaDeClase[HORA DE FINALIZACIÓN]),ListaDeClase[ÚNICO]),ListaDeClase[ÚNICO],0),2),0)","v":0},{"$f":"IFERROR(INDEX(ListaDeClase[],MATCH(SUMPRODUCT((ListaDeClase[DÍA]=ProgramaciónDeClase[[#Headers],[MIÉRCOLES]])*(ROUNDDOWN($B31,10)>=ROUNDDOWN(ListaDeClase[HORA DE INICIO],10))*($B31<=ListaDeClase[HORA DE FINALIZACIÓN]),ListaDeClase[ÚNICO]),ListaDeClase[ÚNICO],0),2),0)","v":0},{"$f":"IFERROR(INDEX(ListaDeClase[],MATCH(SUMPRODUCT((ListaDeClase[DÍA]=ProgramaciónDeClase[[#Headers],[JUEVES]])*(ROUNDDOWN($B31,10)>=ROUNDDOWN(ListaDeClase[HORA DE INICIO],10))*($B31<=ListaDeClase[HORA DE FINALIZACIÓN]),ListaDeClase[ÚNICO]),ListaDeClase[ÚNICO],0),2),0)","v":0},{"$f":"IFERROR(INDEX(ListaDeClase[],MATCH(SUMPRODUCT((ListaDeClase[DÍA]=ProgramaciónDeClase[[#Headers],[VIERNES]])*(ROUNDDOWN($B31,10)>=ROUNDDOWN(ListaDeClase[HORA DE INICIO],10))*($B31<=ListaDeClase[HORA DE FINALIZACIÓN]),ListaDeClase[ÚNICO]),ListaDeClase[ÚNICO],0),2),0)","v":0},{"$f":"IFERROR(INDEX(ListaDeClase[],MATCH(SUMPRODUCT((ListaDeClase[DÍA]=ProgramaciónDeClase[[#Headers],[SÁBADO]])*(ROUNDDOWN($B31,10)>=ROUNDDOWN(ListaDeClase[HORA DE INICIO],10))*($B31<=ListaDeClase[HORA DE FINALIZACIÓN]),ListaDeClase[ÚNICO]),ListaDeClase[ÚNICO],0),2),0)","v":0}]
[null,"15:00:00",{"$f":"IFERROR(INDEX(ListaDeClase[],MATCH(SUMPRODUCT((ListaDeClase[DÍA]=ProgramaciónDeClase[[#Headers],[DOMINGO]])*(ROUNDDOWN($B32,10)>=ROUNDDOWN(ListaDeClase[HORA DE INICIO],10))*($B32<=ListaDeClase[HORA DE FINALIZACIÓN]),ListaDeClase[ÚNICO]),ListaDeClase[ÚNICO],0),2),0)","v":0},{"$f":"IFERROR(INDEX(ListaDeClase[],MATCH(SUMPRODUCT((ListaDeClase[DÍA]=ProgramaciónDeClase[[#Headers],[LUNES]])*(ROUNDDOWN($B32,10)>=ROUNDDOWN(ListaDeClase[HORA DE INICIO],10))*($B32<=ListaDeClase[HORA DE FINALIZACIÓN]),ListaDeClase[ÚNICO]),ListaDeClase[ÚNICO],0),2),0)","v":0},{"$f":"IFERROR(INDEX(ListaDeClase[],MATCH(SUMPRODUCT((ListaDeClase[DÍA]=ProgramaciónDeClase[[#Headers],[MARTES]])*(ROUNDDOWN($B32,10)>=ROUNDDOWN(ListaDeClase[HORA DE INICIO],10))*($B32<=ListaDeClase[HORA DE FINALIZACIÓN]),ListaDeClase[ÚNICO]),ListaDeClase[ÚNICO],0),2),0)","v":0},{"$f":"IFERROR(INDEX(ListaDeClase[],MATCH(SUMPRODUCT((ListaDeClase[DÍA]=ProgramaciónDeClase[[#Headers],[MIÉRCOLES]])*(ROUNDDOWN($B32,10)>=ROUNDDOWN(ListaDeClase[HORA DE INICIO],10))*($B32<=ListaDeClase[HORA DE FINALIZACIÓN]),ListaDeClase[ÚNICO]),ListaDeClase[ÚNICO],0),2),0)","v":0},{"$f":"IFERROR(INDEX(ListaDeClase[],MATCH(SUMPRODUCT((ListaDeClase[DÍA]=ProgramaciónDeClase[[#Headers],[JUEVES]])*(ROUNDDOWN($B32,10)>=ROUNDDOWN(ListaDeClase[HORA DE INICIO],10))*($B32<=ListaDeClase[HORA DE FINALIZACIÓN]),ListaDeClase[ÚNICO]),ListaDeClase[ÚNICO],0),2),0)","v":0},{"$f":"IFERROR(INDEX(ListaDeClase[],MATCH(SUMPRODUCT((ListaDeClase[DÍA]=ProgramaciónDeClase[[#Headers],[VIERNES]])*(ROUNDDOWN($B32,10)>=ROUNDDOWN(ListaDeClase[HORA DE INICIO],10))*($B32<=ListaDeClase[HORA DE FINALIZACIÓN]),ListaDeClase[ÚNICO]),ListaDeClase[ÚNICO],0),2),0)","v":0},{"$f":"IFERROR(INDEX(ListaDeClase[],MATCH(SUMPRODUCT((ListaDeClase[DÍA]=ProgramaciónDeClase[[#Headers],[SÁBADO]])*(ROUNDDOWN($B32,10)>=ROUNDDOWN(ListaDeClase[HORA DE INICIO],10))*($B32<=ListaDeClase[HORA DE FINALIZACIÓN]),ListaDeClase[ÚNICO]),ListaDeClase[ÚNICO],0),2),0)","v":0}]
[null,"15:15:00",{"$f":"IFERROR(INDEX(ListaDeClase[],MATCH(SUMPRODUCT((ListaDeClase[DÍA]=ProgramaciónDeClase[[#Headers],[DOMINGO]])*(ROUNDDOWN($B33,10)>=ROUNDDOWN(ListaDeClase[HORA DE INICIO],10))*($B33<=ListaDeClase[HORA DE FINALIZACIÓN]),ListaDeClase[ÚNICO]),ListaDeClase[ÚNICO],0),2),0)","v":0},{"$f":"IFERROR(INDEX(ListaDeClase[],MATCH(SUMPRODUCT((ListaDeClase[DÍA]=ProgramaciónDeClase[[#Headers],[LUNES]])*(ROUNDDOWN($B33,10)>=ROUNDDOWN(ListaDeClase[HORA DE INICIO],10))*($B33<=ListaDeClase[HORA DE FINALIZACIÓN]),ListaDeClase[ÚNICO]),ListaDeClase[ÚNICO],0),2),0)","v":0},{"$f":"IFERROR(INDEX(ListaDeClase[],MATCH(SUMPRODUCT((ListaDeClase[DÍA]=ProgramaciónDeClase[[#Headers],[MARTES]])*(ROUNDDOWN($B33,10)>=ROUNDDOWN(ListaDeClase[HORA DE INICIO],10))*($B33<=ListaDeClase[HORA DE FINALIZACIÓN]),ListaDeClase[ÚNICO]),ListaDeClase[ÚNICO],0),2),0)","v":0},{"$f":"IFERROR(INDEX(ListaDeClase[],MATCH(SUMPRODUCT((ListaDeClase[DÍA]=ProgramaciónDeClase[[#Headers],[MIÉRCOLES]])*(ROUNDDOWN($B33,10)>=ROUNDDOWN(ListaDeClase[HORA DE INICIO],10))*($B33<=ListaDeClase[HORA DE FINALIZACIÓN]),ListaDeClase[ÚNICO]),ListaDeClase[ÚNICO],0),2),0)","v":0},{"$f":"IFERROR(INDEX(ListaDeClase[],MATCH(SUMPRODUCT((ListaDeClase[DÍA]=ProgramaciónDeClase[[#Headers],[JUEVES]])*(ROUNDDOWN($B33,10)>=ROUNDDOWN(ListaDeClase[HORA DE INICIO],10))*($B33<=ListaDeClase[HORA DE FINALIZACIÓN]),ListaDeClase[ÚNICO]),ListaDeClase[ÚNICO],0),2),0)","v":0},{"$f":"IFERROR(INDEX(ListaDeClase[],MATCH(SUMPRODUCT((ListaDeClase[DÍA]=ProgramaciónDeClase[[#Headers],[VIERNES]])*(ROUNDDOWN($B33,10)>=ROUNDDOWN(ListaDeClase[HORA DE INICIO],10))*($B33<=ListaDeClase[HORA DE FINALIZACIÓN]),ListaDeClase[ÚNICO]),ListaDeClase[ÚNICO],0),2),0)","v":0},{"$f":"IFERROR(INDEX(ListaDeClase[],MATCH(SUMPRODUCT((ListaDeClase[DÍA]=ProgramaciónDeClase[[#Headers],[SÁBADO]])*(ROUNDDOWN($B33,10)>=ROUNDDOWN(ListaDeClase[HORA DE INICIO],10))*($B33<=ListaDeClase[HORA DE FINALIZACIÓN]),ListaDeClase[ÚNICO]),ListaDeClase[ÚNICO],0),2),0)","v":0}]
[null,{"$f":"B33+Incremento","v":"15:30:00"},{"$f":"IFERROR(INDEX(ListaDeClase[],MATCH(SUMPRODUCT((ListaDeClase[DÍA]=ProgramaciónDeClase[[#Headers],[DOMINGO]])*(ROUNDDOWN($B34,10)>=ROUNDDOWN(ListaDeClase[HORA DE INICIO],10))*($B34<=ListaDeClase[HORA DE FINALIZACIÓN]),ListaDeClase[ÚNICO]),ListaDeClase[ÚNICO],0),2),0)","v":0},{"$f":"IFERROR(INDEX(ListaDeClase[],MATCH(SUMPRODUCT((ListaDeClase[DÍA]=ProgramaciónDeClase[[#Headers],[LUNES]])*(ROUNDDOWN($B34,10)>=ROUNDDOWN(ListaDeClase[HORA DE INICIO],10))*($B34<=ListaDeClase[HORA DE FINALIZACIÓN]),ListaDeClase[ÚNICO]),ListaDeClase[ÚNICO],0),2),0)","v":0},{"$f":"IFERROR(INDEX(ListaDeClase[],MATCH(SUMPRODUCT((ListaDeClase[DÍA]=ProgramaciónDeClase[[#Headers],[MARTES]])*(ROUNDDOWN($B34,10)>=ROUNDDOWN(ListaDeClase[HORA DE INICIO],10))*($B34<=ListaDeClase[HORA DE FINALIZACIÓN]),ListaDeClase[ÚNICO]),ListaDeClase[ÚNICO],0),2),0)","v":0},{"$f":"IFERROR(INDEX(ListaDeClase[],MATCH(SUMPRODUCT((ListaDeClase[DÍA]=ProgramaciónDeClase[[#Headers],[MIÉRCOLES]])*(ROUNDDOWN($B34,10)>=ROUNDDOWN(ListaDeClase[HORA DE INICIO],10))*($B34<=ListaDeClase[HORA DE FINALIZACIÓN]),ListaDeClase[ÚNICO]),ListaDeClase[ÚNICO],0),2),0)","v":0},{"$f":"IFERROR(INDEX(ListaDeClase[],MATCH(SUMPRODUCT((ListaDeClase[DÍA]=ProgramaciónDeClase[[#Headers],[JUEVES]])*(ROUNDDOWN($B34,10)>=ROUNDDOWN(ListaDeClase[HORA DE INICIO],10))*($B34<=ListaDeClase[HORA DE FINALIZACIÓN]),ListaDeClase[ÚNICO]),ListaDeClase[ÚNICO],0),2),0)","v":0},{"$f":"IFERROR(INDEX(ListaDeClase[],MATCH(SUMPRODUCT((ListaDeClase[DÍA]=ProgramaciónDeClase[[#Headers],[VIERNES]])*(ROUNDDOWN($B34,10)>=ROUNDDOWN(ListaDeClase[HORA DE INICIO],10))*($B34<=ListaDeClase[HORA DE FINALIZACIÓN]),ListaDeClase[ÚNICO]),ListaDeClase[ÚNICO],0),2),0)","v":0},{"$f":"IFERROR(INDEX(ListaDeClase[],MATCH(SUMPRODUCT((ListaDeClase[DÍA]=ProgramaciónDeClase[[#Headers],[SÁBADO]])*(ROUNDDOWN($B34,10)>=ROUNDDOWN(ListaDeClase[HORA DE INICIO],10))*($B34<=ListaDeClase[HORA DE FINALIZACIÓN]),ListaDeClase[ÚNICO]),ListaDeClase[ÚNICO],0),2),0)","v":0}]
[null,"15:45:00",{"$f":"IFERROR(INDEX(ListaDeClase[],MATCH(SUMPRODUCT((ListaDeClase[DÍA]=ProgramaciónDeClase[[#Headers],[DOMINGO]])*(ROUNDDOWN($B35,10)>=ROUNDDOWN(ListaDeClase[HORA DE INICIO],10))*($B35<=ListaDeClase[HORA DE FINALIZACIÓN]),ListaDeClase[ÚNICO]),ListaDeClase[ÚNICO],0),2),0)","v":0},{"$f":"IFERROR(INDEX(ListaDeClase[],MATCH(SUMPRODUCT((ListaDeClase[DÍA]=ProgramaciónDeClase[[#Headers],[LUNES]])*(ROUNDDOWN($B35,10)>=ROUNDDOWN(ListaDeClase[HORA DE INICIO],10))*($B35<=ListaDeClase[HORA DE FINALIZACIÓN]),ListaDeClase[ÚNICO]),ListaDeClase[ÚNICO],0),2),0)","v":0},{"$f":"IFERROR(INDEX(ListaDeClase[],MATCH(SUMPRODUCT((ListaDeClase[DÍA]=ProgramaciónDeClase[[#Headers],[MARTES]])*(ROUNDDOWN($B35,10)>=ROUNDDOWN(ListaDeClase[HORA DE INICIO],10))*($B35<=ListaDeClase[HORA DE FINALIZACIÓN]),ListaDeClase[ÚNICO]),ListaDeClase[ÚNICO],0),2),0)","v":0},{"$f":"IFERROR(INDEX(ListaDeClase[],MATCH(SUMPRODUCT((ListaDeClase[DÍA]=ProgramaciónDeClase[[#Headers],[MIÉRCOLES]])*(ROUNDDOWN($B35,10)>=ROUNDDOWN(ListaDeClase[HORA DE INICIO],10))*($B35<=ListaDeClase[HORA DE FINALIZACIÓN]),ListaDeClase[ÚNICO]),ListaDeClase[ÚNICO],0),2),0)","v":0},{"$f":"IFERROR(INDEX(ListaDeClase[],MATCH(SUMPRODUCT((ListaDeClase[DÍA]=ProgramaciónDeClase[[#Headers],[JUEVES]])*(ROUNDDOWN($B35,10)>=ROUNDDOWN(ListaDeClase[HORA DE INICIO],10))*($B35<=ListaDeClase[HORA DE FINALIZACIÓN]),ListaDeClase[ÚNICO]),ListaDeClase[ÚNICO],0),2),0)","v":0},{"$f":"IFERROR(INDEX(ListaDeClase[],MATCH(SUMPRODUCT((ListaDeClase[DÍA]=ProgramaciónDeClase[[#Headers],[VIERNES]])*(ROUNDDOWN($B35,10)>=ROUNDDOWN(ListaDeClase[HORA DE INICIO],10))*($B35<=ListaDeClase[HORA DE FINALIZACIÓN]),ListaDeClase[ÚNICO]),ListaDeClase[ÚNICO],0),2),0)","v":0},{"$f":"IFERROR(INDEX(ListaDeClase[],MATCH(SUMPRODUCT((ListaDeClase[DÍA]=ProgramaciónDeClase[[#Headers],[SÁBADO]])*(ROUNDDOWN($B35,10)>=ROUNDDOWN(ListaDeClase[HORA DE INICIO],10))*($B35<=ListaDeClase[HORA DE FINALIZACIÓN]),ListaDeClase[ÚNICO]),ListaDeClase[ÚNICO],0),2),0)","v":0}]
[null,"16:00:00",{"$f":"IFERROR(INDEX(ListaDeClase[],MATCH(SUMPRODUCT((ListaDeClase[DÍA]=ProgramaciónDeClase[[#Headers],[DOMINGO]])*(ROUNDDOWN($B36,10)>=ROUNDDOWN(ListaDeClase[HORA DE INICIO],10))*($B36<=ListaDeClase[HORA DE FINALIZACIÓN]),ListaDeClase[ÚNICO]),ListaDeClase[ÚNICO],0),2),0)","v":0},{"$f":"IFERROR(INDEX(ListaDeClase[],MATCH(SUMPRODUCT((ListaDeClase[DÍA]=ProgramaciónDeClase[[#Headers],[LUNES]])*(ROUNDDOWN($B36,10)>=ROUNDDOWN(ListaDeClase[HORA DE INICIO],10))*($B36<=ListaDeClase[HORA DE FINALIZACIÓN]),ListaDeClase[ÚNICO]),ListaDeClase[ÚNICO],0),2),0)","v":"SP-111"},{"$f":"IFERROR(INDEX(ListaDeClase[],MATCH(SUMPRODUCT((ListaDeClase[DÍA]=ProgramaciónDeClase[[#Headers],[MARTES]])*(ROUNDDOWN($B36,10)>=ROUNDDOWN(ListaDeClase[HORA DE INICIO],10))*($B36<=ListaDeClase[HORA DE FINALIZACIÓN]),ListaDeClase[ÚNICO]),ListaDeClase[ÚNICO],0),2),0)","v":0},{"$f":"IFERROR(INDEX(ListaDeClase[],MATCH(SUMPRODUCT((ListaDeClase[DÍA]=ProgramaciónDeClase[[#Headers],[MIÉRCOLES]])*(ROUNDDOWN($B36,10)>=ROUNDDOWN(ListaDeClase[HORA DE INICIO],10))*($B36<=ListaDeClase[HORA DE FINALIZACIÓN]),ListaDeClase[ÚNICO]),ListaDeClase[ÚNICO],0),2),0)","v":0},{"$f":"IFERROR(INDEX(ListaDeClase[],MATCH(SUMPRODUCT((ListaDeClase[DÍA]=ProgramaciónDeClase[[#Headers],[JUEVES]])*(ROUNDDOWN($B36,10)>=ROUNDDOWN(ListaDeClase[HORA DE INICIO],10))*($B36<=ListaDeClase[HORA DE FINALIZACIÓN]),ListaDeClase[ÚNICO]),ListaDeClase[ÚNICO],0),2),0)","v":0},{"$f":"IFERROR(INDEX(ListaDeClase[],MATCH(SUMPRODUCT((ListaDeClase[DÍA]=ProgramaciónDeClase[[#Headers],[VIERNES]])*(ROUNDDOWN($B36,10)>=ROUNDDOWN(ListaDeClase[HORA DE INICIO],10))*($B36<=ListaDeClase[HORA DE FINALIZACIÓN]),ListaDeClase[ÚNICO]),ListaDeClase[ÚNICO],0),2),0)","v":0},{"$f":"IFERROR(INDEX(ListaDeClase[],MATCH(SUMPRODUCT((ListaDeClase[DÍA]=ProgramaciónDeClase[[#Headers],[SÁBADO]])*(ROUNDDOWN($B36,10)>=ROUNDDOWN(ListaDeClase[HORA DE INICIO],10))*($B36<=ListaDeClase[HORA DE FINALIZACIÓN]),ListaDeClase[ÚNICO]),ListaDeClase[ÚNICO],0),2),0)","v":0}]
[null,{"$f":"B36+Incremento","v":"16:15:00"},{"$f":"IFERROR(INDEX(ListaDeClase[],MATCH(SUMPRODUCT((ListaDeClase[DÍA]=ProgramaciónDeClase[[#Headers],[DOMINGO]])*(ROUNDDOWN($B37,10)>=ROUNDDOWN(ListaDeClase[HORA DE INICIO],10))*($B37<=ListaDeClase[HORA DE FINALIZACIÓN]),ListaDeClase[ÚNICO]),ListaDeClase[ÚNICO],0),2),0)","v":0},{"$f":"IFERROR(INDEX(ListaDeClase[],MATCH(SUMPRODUCT((ListaDeClase[DÍA]=ProgramaciónDeClase[[#Headers],[LUNES]])*(ROUNDDOWN($B37,10)>=ROUNDDOWN(ListaDeClase[HORA DE INICIO],10))*($B37<=ListaDeClase[HORA DE FINALIZACIÓN]),ListaDeClase[ÚNICO]),ListaDeClase[ÚNICO],0),2),0)","v":"SP-111"},{"$f":"IFERROR(INDEX(ListaDeClase[],MATCH(SUMPRODUCT((ListaDeClase[DÍA]=ProgramaciónDeClase[[#Headers],[MARTES]])*(ROUNDDOWN($B37,10)>=ROUNDDOWN(ListaDeClase[HORA DE INICIO],10))*($B37<=ListaDeClase[HORA DE FINALIZACIÓN]),ListaDeClase[ÚNICO]),ListaDeClase[ÚNICO],0),2),0)","v":0},{"$f":"IFERROR(INDEX(ListaDeClase[],MATCH(SUMPRODUCT((ListaDeClase[DÍA]=ProgramaciónDeClase[[#Headers],[MIÉRCOLES]])*(ROUNDDOWN($B37,10)>=ROUNDDOWN(ListaDeClase[HORA DE INICIO],10))*($B37<=ListaDeClase[HORA DE FINALIZACIÓN]),ListaDeClase[ÚNICO]),ListaDeClase[ÚNICO],0),2),0)","v":0},{"$f":"IFERROR(INDEX(ListaDeClase[],MATCH(SUMPRODUCT((ListaDeClase[DÍA]=ProgramaciónDeClase[[#Headers],[JUEVES]])*(ROUNDDOWN($B37,10)>=ROUNDDOWN(ListaDeClase[HORA DE INICIO],10))*($B37<=ListaDeClase[HORA DE FINALIZACIÓN]),ListaDeClase[ÚNICO]),ListaDeClase[ÚNICO],0),2),0)","v":0},{"$f":"IFERROR(INDEX(ListaDeClase[],MATCH(SUMPRODUCT((ListaDeClase[DÍA]=ProgramaciónDeClase[[#Headers],[VIERNES]])*(ROUNDDOWN($B37,10)>=ROUNDDOWN(ListaDeClase[HORA DE INICIO],10))*($B37<=ListaDeClase[HORA DE FINALIZACIÓN]),ListaDeClase[ÚNICO]),ListaDeClase[ÚNICO],0),2),0)","v":0},{"$f":"IFERROR(INDEX(ListaDeClase[],MATCH(SUMPRODUCT((ListaDeClase[DÍA]=ProgramaciónDeClase[[#Headers],[SÁBADO]])*(ROUNDDOWN($B37,10)>=ROUNDDOWN(ListaDeClase[HORA DE INICIO],10))*($B37<=ListaDeClase[HORA DE FINALIZACIÓN]),ListaDeClase[ÚNICO]),ListaDeClase[ÚNICO],0),2),0)","v":0}]
[null,"16:30:00",{"$f":"IFERROR(INDEX(ListaDeClase[],MATCH(SUMPRODUCT((ListaDeClase[DÍA]=ProgramaciónDeClase[[#Headers],[DOMINGO]])*(ROUNDDOWN($B38,10)>=ROUNDDOWN(ListaDeClase[HORA DE INICIO],10))*($B38<=ListaDeClase[HORA DE FINALIZACIÓN]),ListaDeClase[ÚNICO]),ListaDeClase[ÚNICO],0),2),0)","v":0},{"$f":"IFERROR(INDEX(ListaDeClase[],MATCH(SUMPRODUCT((ListaDeClase[DÍA]=ProgramaciónDeClase[[#Headers],[LUNES]])*(ROUNDDOWN($B38,10)>=ROUNDDOWN(ListaDeClase[HORA DE INICIO],10))*($B38<=ListaDeClase[HORA DE FINALIZACIÓN]),ListaDeClase[ÚNICO]),ListaDeClase[ÚNICO],0),2),0)","v":"SP-111"},{"$f":"IFERROR(INDEX(ListaDeClase[],MATCH(SUMPRODUCT((ListaDeClase[DÍA]=ProgramaciónDeClase[[#Headers],[MARTES]])*(ROUNDDOWN($B38,10)>=ROUNDDOWN(ListaDeClase[HORA DE INICIO],10))*($B38<=ListaDeClase[HORA DE FINALIZACIÓN]),ListaDeClase[ÚNICO]),ListaDeClase[ÚNICO],0),2),0)","v":0},{"$f":"IFERROR(INDEX(ListaDeClase[],MATCH(SUMPRODUCT((ListaDeClase[DÍA]=ProgramaciónDeClase[[#Headers],[MIÉRCOLES]])*(ROUNDDOWN($B38,10)>=ROUNDDOWN(ListaDeClase[HORA DE INICIO],10))*($B38<=ListaDeClase[HORA DE FINALIZACIÓN]),ListaDeClase[ÚNICO]),ListaDeClase[ÚNICO],0),2),0)","v":0},{"$f":"IFERROR(INDEX(ListaDeClase[],MATCH(SUMPRODUCT((ListaDeClase[DÍA]=ProgramaciónDeClase[[#Headers],[JUEVES]])*(ROUNDDOWN($B38,10)>=ROUNDDOWN(ListaDeClase[HORA DE INICIO],10))*($B38<=ListaDeClase[HORA DE FINALIZACIÓN]),ListaDeClase[ÚNICO]),ListaDeClase[ÚNICO],0),2),0)","v":0},{"$f":"IFERROR(INDEX(ListaDeClase[],MATCH(SUMPRODUCT((ListaDeClase[DÍA]=ProgramaciónDeClase[[#Headers],[VIERNES]])*(ROUNDDOWN($B38,10)>=ROUNDDOWN(ListaDeClase[HORA DE INICIO],10))*($B38<=ListaDeClase[HORA DE FINALIZACIÓN]),ListaDeClase[ÚNICO]),ListaDeClase[ÚNICO],0),2),0)","v":0},{"$f":"IFERROR(INDEX(ListaDeClase[],MATCH(SUMPRODUCT((ListaDeClase[DÍA]=ProgramaciónDeClase[[#Headers],[SÁBADO]])*(ROUNDDOWN($B38,10)>=ROUNDDOWN(ListaDeClase[HORA DE INICIO],10))*($B38<=ListaDeClase[HORA DE FINALIZACIÓN]),ListaDeClase[ÚNICO]),ListaDeClase[ÚNICO],0),2),0)","v":0}]
[null,"16:45:00",{"$f":"IFERROR(INDEX(ListaDeClase[],MATCH(SUMPRODUCT((ListaDeClase[DÍA]=ProgramaciónDeClase[[#Headers],[DOMINGO]])*(ROUNDDOWN($B39,10)>=ROUNDDOWN(ListaDeClase[HORA DE INICIO],10))*($B39<=ListaDeClase[HORA DE FINALIZACIÓN]),ListaDeClase[ÚNICO]),ListaDeClase[ÚNICO],0),2),0)","v":0},{"$f":"IFERROR(INDEX(ListaDeClase[],MATCH(SUMPRODUCT((ListaDeClase[DÍA]=ProgramaciónDeClase[[#Headers],[LUNES]])*(ROUNDDOWN($B39,10)>=ROUNDDOWN(ListaDeClase[HORA DE INICIO],10))*($B39<=ListaDeClase[HORA DE FINALIZACIÓN]),ListaDeClase[ÚNICO]),ListaDeClase[ÚNICO],0),2),0)","v":"SP-111"},{"$f":"IFERROR(INDEX(ListaDeClase[],MATCH(SUMPRODUCT((ListaDeClase[DÍA]=ProgramaciónDeClase[[#Headers],[MARTES]])*(ROUNDDOWN($B39,10)>=ROUNDDOWN(ListaDeClase[HORA DE INICIO],10))*($B39<=ListaDeClase[HORA DE FINALIZACIÓN]),ListaDeClase[ÚNICO]),ListaDeClase[ÚNICO],0),2),0)","v":0},{"$f":"IFERROR(INDEX(ListaDeClase[],MATCH(SUMPRODUCT((ListaDeClase[DÍA]=ProgramaciónDeClase[[#Headers],[MIÉRCOLES]])*(ROUNDDOWN($B39,10)>=ROUNDDOWN(ListaDeClase[HORA DE INICIO],10))*($B39<=ListaDeClase[HORA DE FINALIZACIÓN]),ListaDeClase[ÚNICO]),ListaDeClase[ÚNICO],0),2),0)","v":0},{"$f":"IFERROR(INDEX(ListaDeClase[],MATCH(SUMPRODUCT((ListaDeClase[DÍA]=ProgramaciónDeClase[[#Headers],[JUEVES]])*(ROUNDDOWN($B39,10)>=ROUNDDOWN(ListaDeClase[HORA DE INICIO],10))*($B39<=ListaDeClase[HORA DE FINALIZACIÓN]),ListaDeClase[ÚNICO]),ListaDeClase[ÚNICO],0),2),0)","v":0},{"$f":"IFERROR(INDEX(ListaDeClase[],MATCH(SUMPRODUCT((ListaDeClase[DÍA]=ProgramaciónDeClase[[#Headers],[VIERNES]])*(ROUNDDOWN($B39,10)>=ROUNDDOWN(ListaDeClase[HORA DE INICIO],10))*($B39<=ListaDeClase[HORA DE FINALIZACIÓN]),ListaDeClase[ÚNICO]),ListaDeClase[ÚNICO],0),2),0)","v":0},{"$f":"IFERROR(INDEX(ListaDeClase[],MATCH(SUMPRODUCT((ListaDeClase[DÍA]=ProgramaciónDeClase[[#Headers],[SÁBADO]])*(ROUNDDOWN($B39,10)>=ROUNDDOWN(ListaDeClase[HORA DE INICIO],10))*($B39<=ListaDeClase[HORA DE FINALIZACIÓN]),ListaDeClase[ÚNICO]),ListaDeClase[ÚNICO],0),2),0)","v":0}]
[null,"17:00:00",{"$f":"IFERROR(INDEX(ListaDeClase[],MATCH(SUMPRODUCT((ListaDeClase[DÍA]=ProgramaciónDeClase[[#Headers],[DOMINGO]])*(ROUNDDOWN($B40,10)>=ROUNDDOWN(ListaDeClase[HORA DE INICIO],10))*($B40<=ListaDeClase[HORA DE FINALIZACIÓN]),ListaDeClase[ÚNICO]),ListaDeClase[ÚNICO],0),2),0)","v":0},{"$f":"IFERROR(INDEX(ListaDeClase[],MATCH(SUMPRODUCT((ListaDeClase[DÍA]=ProgramaciónDeClase[[#Headers],[LUNES]])*(ROUNDDOWN($B40,10)>=ROUNDDOWN(ListaDeClase[HORA DE INICIO],10))*($B40<=ListaDeClase[HORA DE FINALIZACIÓN]),ListaDeClase[ÚNICO]),ListaDeClase[ÚNICO],0),2),0)","v":"SP-111"},{"$f":"IFERROR(INDEX(ListaDeClase[],MATCH(SUMPRODUCT((ListaDeClase[DÍA]=ProgramaciónDeClase[[#Headers],[MARTES]])*(ROUNDDOWN($B40,10)>=ROUNDDOWN(ListaDeClase[HORA DE INICIO],10))*($B40<=ListaDeClase[HORA DE FINALIZACIÓN]),ListaDeClase[ÚNICO]),ListaDeClase[ÚNICO],0),2),0)","v":0},{"$f":"IFERROR(INDEX(ListaDeClase[],MATCH(SUMPRODUCT((ListaDeClase[DÍA]=ProgramaciónDeClase[[#Headers],[MIÉRCOLES]])*(ROUNDDOWN($B40,10)>=ROUNDDOWN(ListaDeClase[HORA DE INICIO],10))*($B40<=ListaDeClase[HORA DE FINALIZACIÓN]),ListaDeClase[ÚNICO]),ListaDeClase[ÚNICO],0),2),0)","v":0},{"$f":"IFERROR(INDEX(ListaDeClase[],MATCH(SUMPRODUCT((ListaDeClase[DÍA]=ProgramaciónDeClase[[#Headers],[JUEVES]])*(ROUNDDOWN($B40,10)>=ROUNDDOWN(ListaDeClase[HORA DE INICIO],10))*($B40<=ListaDeClase[HORA DE FINALIZACIÓN]),ListaDeClase[ÚNICO]),ListaDeClase[ÚNICO],0),2),0)","v":0},{"$f":"IFERROR(INDEX(ListaDeClase[],MATCH(SUMPRODUCT((ListaDeClase[DÍA]=ProgramaciónDeClase[[#Headers],[VIERNES]])*(ROUNDDOWN($B40,10)>=ROUNDDOWN(ListaDeClase[HORA DE INICIO],10))*($B40<=ListaDeClase[HORA DE FINALIZACIÓN]),ListaDeClase[ÚNICO]),ListaDeClase[ÚNICO],0),2),0)","v":0},{"$f":"IFERROR(INDEX(ListaDeClase[],MATCH(SUMPRODUCT((ListaDeClase[DÍA]=ProgramaciónDeClase[[#Headers],[SÁBADO]])*(ROUNDDOWN($B40,10)>=ROUNDDOWN(ListaDeClase[HORA DE INICIO],10))*($B40<=ListaDeClase[HORA DE FINALIZACIÓN]),ListaDeClase[ÚNICO]),ListaDeClase[ÚNICO],0),2),0)","v":0}]
[null,"17:15:00",{"$f":"IFERROR(INDEX(ListaDeClase[],MATCH(SUMPRODUCT((ListaDeClase[DÍA]=ProgramaciónDeClase[[#Headers],[DOMINGO]])*(ROUNDDOWN($B41,10)>=ROUNDDOWN(ListaDeClase[HORA DE INICIO],10))*($B41<=ListaDeClase[HORA DE FINALIZACIÓN]),ListaDeClase[ÚNICO]),ListaDeClase[ÚNICO],0),2),0)","v":0},{"$f":"IFERROR(INDEX(ListaDeClase[],MATCH(SUMPRODUCT((ListaDeClase[DÍA]=ProgramaciónDeClase[[#Headers],[LUNES]])*(ROUNDDOWN($B41,10)>=ROUNDDOWN(ListaDeClase[HORA DE INICIO],10))*($B41<=ListaDeClase[HORA DE FINALIZACIÓN]),ListaDeClase[ÚNICO]),ListaDeClase[ÚNICO],0),2),0)","v":0},{"$f":"IFERROR(INDEX(ListaDeClase[],MATCH(SUMPRODUCT((ListaDeClase[DÍA]=ProgramaciónDeClase[[#Headers],[MARTES]])*(ROUNDDOWN($B41,10)>=ROUNDDOWN(ListaDeClase[HORA DE INICIO],10))*($B41<=ListaDeClase[HORA DE FINALIZACIÓN]),ListaDeClase[ÚNICO]),ListaDeClase[ÚNICO],0),2),0)","v":0},{"$f":"IFERROR(INDEX(ListaDeClase[],MATCH(SUMPRODUCT((ListaDeClase[DÍA]=ProgramaciónDeClase[[#Headers],[MIÉRCOLES]])*(ROUNDDOWN($B41,10)>=ROUNDDOWN(ListaDeClase[HORA DE INICIO],10))*($B41<=ListaDeClase[HORA DE FINALIZACIÓN]),ListaDeClase[ÚNICO]),ListaDeClase[ÚNICO],0),2),0)","v":0},{"$f":"IFERROR(INDEX(ListaDeClase[],MATCH(SUMPRODUCT((ListaDeClase[DÍA]=ProgramaciónDeClase[[#Headers],[JUEVES]])*(ROUNDDOWN($B41,10)>=ROUNDDOWN(ListaDeClase[HORA DE INICIO],10))*($B41<=ListaDeClase[HORA DE FINALIZACIÓN]),ListaDeClase[ÚNICO]),ListaDeClase[ÚNICO],0),2),0)","v":0},{"$f":"IFERROR(INDEX(ListaDeClase[],MATCH(SUMPRODUCT((ListaDeClase[DÍA]=ProgramaciónDeClase[[#Headers],[VIERNES]])*(ROUNDDOWN($B41,10)>=ROUNDDOWN(ListaDeClase[HORA DE INICIO],10))*($B41<=ListaDeClase[HORA DE FINALIZACIÓN]),ListaDeClase[ÚNICO]),ListaDeClase[ÚNICO],0),2),0)","v":0},{"$f":"IFERROR(INDEX(ListaDeClase[],MATCH(SUMPRODUCT((ListaDeClase[DÍA]=ProgramaciónDeClase[[#Headers],[SÁBADO]])*(ROUNDDOWN($B41,10)>=ROUNDDOWN(ListaDeClase[HORA DE INICIO],10))*($B41<=ListaDeClase[HORA DE FINALIZACIÓN]),ListaDeClase[ÚNICO]),ListaDeClase[ÚNICO],0),2),0)","v":0}]
[null,"17:30:00",{"$f":"IFERROR(INDEX(ListaDeClase[],MATCH(SUMPRODUCT((ListaDeClase[DÍA]=ProgramaciónDeClase[[#Headers],[DOMINGO]])*(ROUNDDOWN($B42,10)>=ROUNDDOWN(ListaDeClase[HORA DE INICIO],10))*($B42<=ListaDeClase[HORA DE FINALIZACIÓN]),ListaDeClase[ÚNICO]),ListaDeClase[ÚNICO],0),2),0)","v":0},{"$f":"IFERROR(INDEX(ListaDeClase[],MATCH(SUMPRODUCT((ListaDeClase[DÍA]=ProgramaciónDeClase[[#Headers],[LUNES]])*(ROUNDDOWN($B42,10)>=ROUNDDOWN(ListaDeClase[HORA DE INICIO],10))*($B42<=ListaDeClase[HORA DE FINALIZACIÓN]),ListaDeClase[ÚNICO]),ListaDeClase[ÚNICO],0),2),0)","v":0},{"$f":"IFERROR(INDEX(ListaDeClase[],MATCH(SUMPRODUCT((ListaDeClase[DÍA]=ProgramaciónDeClase[[#Headers],[MARTES]])*(ROUNDDOWN($B42,10)>=ROUNDDOWN(ListaDeClase[HORA DE INICIO],10))*($B42<=ListaDeClase[HORA DE FINALIZACIÓN]),ListaDeClase[ÚNICO]),ListaDeClase[ÚNICO],0),2),0)","v":0},{"$f":"IFERROR(INDEX(ListaDeClase[],MATCH(SUMPRODUCT((ListaDeClase[DÍA]=ProgramaciónDeClase[[#Headers],[MIÉRCOLES]])*(ROUNDDOWN($B42,10)>=ROUNDDOWN(ListaDeClase[HORA DE INICIO],10))*($B42<=ListaDeClase[HORA DE FINALIZACIÓN]),ListaDeClase[ÚNICO]),ListaDeClase[ÚNICO],0),2),0)","v":0},{"$f":"IFERROR(INDEX(ListaDeClase[],MATCH(SUMPRODUCT((ListaDeClase[DÍA]=ProgramaciónDeClase[[#Headers],[JUEVES]])*(ROUNDDOWN($B42,10)>=ROUNDDOWN(ListaDeClase[HORA DE INICIO],10))*($B42<=ListaDeClase[HORA DE FINALIZACIÓN]),ListaDeClase[ÚNICO]),ListaDeClase[ÚNICO],0),2),0)","v":0},{"$f":"IFERROR(INDEX(ListaDeClase[],MATCH(SUMPRODUCT((ListaDeClase[DÍA]=ProgramaciónDeClase[[#Headers],[VIERNES]])*(ROUNDDOWN($B42,10)>=ROUNDDOWN(ListaDeClase[HORA DE INICIO],10))*($B42<=ListaDeClase[HORA DE FINALIZACIÓN]),ListaDeClase[ÚNICO]),ListaDeClase[ÚNICO],0),2),0)","v":0},{"$f":"IFERROR(INDEX(ListaDeClase[],MATCH(SUMPRODUCT((ListaDeClase[DÍA]=ProgramaciónDeClase[[#Headers],[SÁBADO]])*(ROUNDDOWN($B42,10)>=ROUNDDOWN(ListaDeClase[HORA DE INICIO],10))*($B42<=ListaDeClase[HORA DE FINALIZACIÓN]),ListaDeClase[ÚNICO]),ListaDeClase[ÚNICO],0),2),0)","v":0}]
[null,"17:45:00",{"$f":"IFERROR(INDEX(ListaDeClase[],MATCH(SUMPRODUCT((ListaDeClase[DÍA]=ProgramaciónDeClase[[#Headers],[DOMINGO]])*(ROUNDDOWN($B43,10)>=ROUNDDOWN(ListaDeClase[HORA DE INICIO],10))*($B43<=ListaDeClase[HORA DE FINALIZACIÓN]),ListaDeClase[ÚNICO]),ListaDeClase[ÚNICO],0),2),0)","v":0},{"$f":"IFERROR(INDEX(ListaDeClase[],MATCH(SUMPRODUCT((ListaDeClase[DÍA]=ProgramaciónDeClase[[#Headers],[LUNES]])*(ROUNDDOWN($B43,10)>=ROUNDDOWN(ListaDeClase[HORA DE INICIO],10))*($B43<=ListaDeClase[HORA DE FINALIZACIÓN]),ListaDeClase[ÚNICO]),ListaDeClase[ÚNICO],0),2),0)","v":0},{"$f":"IFERROR(INDEX(ListaDeClase[],MATCH(SUMPRODUCT((ListaDeClase[DÍA]=ProgramaciónDeClase[[#Headers],[MARTES]])*(ROUNDDOWN($B43,10)>=ROUNDDOWN(ListaDeClase[HORA DE INICIO],10))*($B43<=ListaDeClase[HORA DE FINALIZACIÓN]),ListaDeClase[ÚNICO]),ListaDeClase[ÚNICO],0),2),0)","v":0},{"$f":"IFERROR(INDEX(ListaDeClase[],MATCH(SUMPRODUCT((ListaDeClase[DÍA]=ProgramaciónDeClase[[#Headers],[MIÉRCOLES]])*(ROUNDDOWN($B43,10)>=ROUNDDOWN(ListaDeClase[HORA DE INICIO],10))*($B43<=ListaDeClase[HORA DE FINALIZACIÓN]),ListaDeClase[ÚNICO]),ListaDeClase[ÚNICO],0),2),0)","v":0},{"$f":"IFERROR(INDEX(ListaDeClase[],MATCH(SUMPRODUCT((ListaDeClase[DÍA]=ProgramaciónDeClase[[#Headers],[JUEVES]])*(ROUNDDOWN($B43,10)>=ROUNDDOWN(ListaDeClase[HORA DE INICIO],10))*($B43<=ListaDeClase[HORA DE FINALIZACIÓN]),ListaDeClase[ÚNICO]),ListaDeClase[ÚNICO],0),2),0)","v":0},{"$f":"IFERROR(INDEX(ListaDeClase[],MATCH(SUMPRODUCT((ListaDeClase[DÍA]=ProgramaciónDeClase[[#Headers],[VIERNES]])*(ROUNDDOWN($B43,10)>=ROUNDDOWN(ListaDeClase[HORA DE INICIO],10))*($B43<=ListaDeClase[HORA DE FINALIZACIÓN]),ListaDeClase[ÚNICO]),ListaDeClase[ÚNICO],0),2),0)","v":0},{"$f":"IFERROR(INDEX(ListaDeClase[],MATCH(SUMPRODUCT((ListaDeClase[DÍA]=ProgramaciónDeClase[[#Headers],[SÁBADO]])*(ROUNDDOWN($B43,10)>=ROUNDDOWN(ListaDeClase[HORA DE INICIO],10))*($B43<=ListaDeClase[HORA DE FINALIZACIÓN]),ListaDeClase[ÚNICO]),ListaDeClase[ÚNICO],0),2),0)","v":0}]
[null,"18:00:00",{"$f":"IFERROR(INDEX(ListaDeClase[],MATCH(SUMPRODUCT((ListaDeClase[DÍA]=ProgramaciónDeClase[[#Headers],[DOMINGO]])*(ROUNDDOWN($B44,10)>=ROUNDDOWN(ListaDeClase[HORA DE INICIO],10))*($B44<=ListaDeClase[HORA DE FINALIZACIÓN]),ListaDeClase[ÚNICO]),ListaDeClase[ÚNICO],0),2),0)","v":0},{"$f":"IFERROR(INDEX(ListaDeClase[],MATCH(SUMPRODUCT((ListaDeClase[DÍA]=ProgramaciónDeClase[[#Headers],[LUNES]])*(ROUNDDOWN($B44,10)>=ROUNDDOWN(ListaDeClase[HORA DE INICIO],10))*($B44<=ListaDeClase[HORA DE FINALIZACIÓN]),ListaDeClase[ÚNICO]),ListaDeClase[ÚNICO],0),2),0)","v":0},{"$f":"IFERROR(INDEX(ListaDeClase[],MATCH(SUMPRODUCT((ListaDeClase[DÍA]=ProgramaciónDeClase[[#Headers],[MARTES]])*(ROUNDDOWN($B44,10)>=ROUNDDOWN(ListaDeClase[HORA DE INICIO],10))*($B44<=ListaDeClase[HORA DE FINALIZACIÓN]),ListaDeClase[ÚNICO]),ListaDeClase[ÚNICO],0),2),0)","v":0},{"$f":"IFERROR(INDEX(ListaDeClase[],MATCH(SUMPRODUCT((ListaDeClase[DÍA]=ProgramaciónDeClase[[#Headers],[MIÉRCOLES]])*(ROUNDDOWN($B44,10)>=ROUNDDOWN(ListaDeClase[HORA DE INICIO],10))*($B44<=ListaDeClase[HORA DE FINALIZACIÓN]),ListaDeClase[ÚNICO]),ListaDeClase[ÚNICO],0),2),0)","v":0},{"$f":"IFERROR(INDEX(ListaDeClase[],MATCH(SUMPRODUCT((ListaDeClase[DÍA]=ProgramaciónDeClase[[#Headers],[JUEVES]])*(ROUNDDOWN($B44,10)>=ROUNDDOWN(ListaDeClase[HORA DE INICIO],10))*($B44<=ListaDeClase[HORA DE FINALIZACIÓN]),ListaDeClase[ÚNICO]),ListaDeClase[ÚNICO],0),2),0)","v":0},{"$f":"IFERROR(INDEX(ListaDeClase[],MATCH(SUMPRODUCT((ListaDeClase[DÍA]=ProgramaciónDeClase[[#Headers],[VIERNES]])*(ROUNDDOWN($B44,10)>=ROUNDDOWN(ListaDeClase[HORA DE INICIO],10))*($B44<=ListaDeClase[HORA DE FINALIZACIÓN]),ListaDeClase[ÚNICO]),ListaDeClase[ÚNICO],0),2),0)","v":0},{"$f":"IFERROR(INDEX(ListaDeClase[],MATCH(SUMPRODUCT((ListaDeClase[DÍA]=ProgramaciónDeClase[[#Headers],[SÁBADO]])*(ROUNDDOWN($B44,10)>=ROUNDDOWN(ListaDeClase[HORA DE INICIO],10))*($B44<=ListaDeClase[HORA DE FINALIZACIÓN]),ListaDeClase[ÚNICO]),ListaDeClase[ÚNICO],0),2),0)","v":0}]
[null,"18:15:00",{"$f":"IFERROR(INDEX(ListaDeClase[],MATCH(SUMPRODUCT((ListaDeClase[DÍA]=ProgramaciónDeClase[[#Headers],[DOMINGO]])*(ROUNDDOWN($B45,10)>=ROUNDDOWN(ListaDeClase[HORA DE INICIO],10))*($B45<=ListaDeClase[HORA DE FINALIZACIÓN]),ListaDeClase[ÚNICO]),ListaDeClase[ÚNICO],0),2),0)","v":0},{"$f":"IFERROR(INDEX(ListaDeClase[],MATCH(SUMPRODUCT((ListaDeClase[DÍA]=ProgramaciónDeClase[[#Headers],[LUNES]])*(ROUNDDOWN($B45,10)>=ROUNDDOWN(ListaDeClase[HORA DE INICIO],10))*($B45<=ListaDeClase[HORA DE FINALIZACIÓN]),ListaDeClase[ÚNICO]),ListaDeClase[ÚNICO],0),2),0)","v":0},{"$f":"IFERROR(INDEX(ListaDeClase[],MATCH(SUMPRODUCT((ListaDeClase[DÍA]=ProgramaciónDeClase[[#Headers],[MARTES]])*(ROUNDDOWN($B45,10)>=ROUNDDOWN(ListaDeClase[HORA DE INICIO],10))*($B45<=ListaDeClase[HORA DE FINALIZACIÓN]),ListaDeClase[ÚNICO]),ListaDeClase[ÚNICO],0),2),0)","v":0},{"$f":"IFERROR(INDEX(ListaDeClase[],MATCH(SUMPRODUCT((ListaDeClase[DÍA]=ProgramaciónDeClase[[#Headers],[MIÉRCOLES]])*(ROUNDDOWN($B45,10)>=ROUNDDOWN(ListaDeClase[HORA DE INICIO],10))*($B45<=ListaDeClase[HORA DE FINALIZACIÓN]),ListaDeClase[ÚNICO]),ListaDeClase[ÚNICO],0),2),0)","v":0},{"$f":"IFERROR(INDEX(ListaDeClase[],MATCH(SUMPRODUCT((ListaDeClase[DÍA]=ProgramaciónDeClase[[#Headers],[JUEVES]])*(ROUNDDOWN($B45,10)>=ROUNDDOWN(ListaDeClase[HORA DE INICIO],10))*($B45<=ListaDeClase[HORA DE FINALIZACIÓN]),ListaDeClase[ÚNICO]),ListaDeClase[ÚNICO],0),2),0)","v":0},{"$f":"IFERROR(INDEX(ListaDeClase[],MATCH(SUMPRODUCT((ListaDeClase[DÍA]=ProgramaciónDeClase[[#Headers],[VIERNES]])*(ROUNDDOWN($B45,10)>=ROUNDDOWN(ListaDeClase[HORA DE INICIO],10))*($B45<=ListaDeClase[HORA DE FINALIZACIÓN]),ListaDeClase[ÚNICO]),ListaDeClase[ÚNICO],0),2),0)","v":0},{"$f":"IFERROR(INDEX(ListaDeClase[],MATCH(SUMPRODUCT((ListaDeClase[DÍA]=ProgramaciónDeClase[[#Headers],[SÁBADO]])*(ROUNDDOWN($B45,10)>=ROUNDDOWN(ListaDeClase[HORA DE INICIO],10))*($B45<=ListaDeClase[HORA DE FINALIZACIÓN]),ListaDeClase[ÚNICO]),ListaDeClase[ÚNICO],0),2),0)","v":0}]
[null,"18:30:00",{"$f":"IFERROR(INDEX(ListaDeClase[],MATCH(SUMPRODUCT((ListaDeClase[DÍA]=ProgramaciónDeClase[[#Headers],[DOMINGO]])*(ROUNDDOWN($B46,10)>=ROUNDDOWN(ListaDeClase[HORA DE INICIO],10))*($B46<=ListaDeClase[HORA DE FINALIZACIÓN]),ListaDeClase[ÚNICO]),ListaDeClase[ÚNICO],0),2),0)","v":0},{"$f":"IFERROR(INDEX(ListaDeClase[],MATCH(SUMPRODUCT((ListaDeClase[DÍA]=ProgramaciónDeClase[[#Headers],[LUNES]])*(ROUNDDOWN($B46,10)>=ROUNDDOWN(ListaDeClase[HORA DE INICIO],10))*($B46<=ListaDeClase[HORA DE FINALIZACIÓN]),ListaDeClase[ÚNICO]),ListaDeClase[ÚNICO],0),2),0)","v":0},{"$f":"IFERROR(INDEX(ListaDeClase[],MATCH(SUMPRODUCT((ListaDeClase[DÍA]=ProgramaciónDeClase[[#Headers],[MARTES]])*(ROUNDDOWN($B46,10)>=ROUNDDOWN(ListaDeClase[HORA DE INICIO],10))*($B46<=ListaDeClase[HORA DE FINALIZACIÓN]),ListaDeClase[ÚNICO]),ListaDeClase[ÚNICO],0),2),0)","v":0},{"$f":"IFERROR(INDEX(ListaDeClase[],MATCH(SUMPRODUCT((ListaDeClase[DÍA]=ProgramaciónDeClase[[#Headers],[MIÉRCOLES]])*(ROUNDDOWN($B46,10)>=ROUNDDOWN(ListaDeClase[HORA DE INICIO],10))*($B46<=ListaDeClase[HORA DE FINALIZACIÓN]),ListaDeClase[ÚNICO]),ListaDeClase[ÚNICO],0),2),0)","v":0},{"$f":"IFERROR(INDEX(ListaDeClase[],MATCH(SUMPRODUCT((ListaDeClase[DÍA]=ProgramaciónDeClase[[#Headers],[JUEVES]])*(ROUNDDOWN($B46,10)>=ROUNDDOWN(ListaDeClase[HORA DE INICIO],10))*($B46<=ListaDeClase[HORA DE FINALIZACIÓN]),ListaDeClase[ÚNICO]),ListaDeClase[ÚNICO],0),2),0)","v":0},{"$f":"IFERROR(INDEX(ListaDeClase[],MATCH(SUMPRODUCT((ListaDeClase[DÍA]=ProgramaciónDeClase[[#Headers],[VIERNES]])*(ROUNDDOWN($B46,10)>=ROUNDDOWN(ListaDeClase[HORA DE INICIO],10))*($B46<=ListaDeClase[HORA DE FINALIZACIÓN]),ListaDeClase[ÚNICO]),ListaDeClase[ÚNICO],0),2),0)","v":0},{"$f":"IFERROR(INDEX(ListaDeClase[],MATCH(SUMPRODUCT((ListaDeClase[DÍA]=ProgramaciónDeClase[[#Headers],[SÁBADO]])*(ROUNDDOWN($B46,10)>=ROUNDDOWN(ListaDeClase[HORA DE INICIO],10))*($B46<=ListaDeClase[HORA DE FINALIZACIÓN]),ListaDeClase[ÚNICO]),ListaDeClase[ÚNICO],0),2),0)","v":0}]
[null,"18:45:00",{"$f":"IFERROR(INDEX(ListaDeClase[],MATCH(SUMPRODUCT((ListaDeClase[DÍA]=ProgramaciónDeClase[[#Headers],[DOMINGO]])*(ROUNDDOWN($B47,10)>=ROUNDDOWN(ListaDeClase[HORA DE INICIO],10))*($B47<=ListaDeClase[HORA DE FINALIZACIÓN]),ListaDeClase[ÚNICO]),ListaDeClase[ÚNICO],0),2),0)","v":0},{"$f":"IFERROR(INDEX(ListaDeClase[],MATCH(SUMPRODUCT((ListaDeClase[DÍA]=ProgramaciónDeClase[[#Headers],[LUNES]])*(ROUNDDOWN($B47,10)>=ROUNDDOWN(ListaDeClase[HORA DE INICIO],10))*($B47<=ListaDeClase[HORA DE FINALIZACIÓN]),ListaDeClase[ÚNICO]),ListaDeClase[ÚNICO],0),2),0)","v":0},{"$f":"IFERROR(INDEX(ListaDeClase[],MATCH(SUMPRODUCT((ListaDeClase[DÍA]=ProgramaciónDeClase[[#Headers],[MARTES]])*(ROUNDDOWN($B47,10)>=ROUNDDOWN(ListaDeClase[HORA DE INICIO],10))*($B47<=ListaDeClase[HORA DE FINALIZACIÓN]),ListaDeClase[ÚNICO]),ListaDeClase[ÚNICO],0),2),0)","v":0},{"$f":"IFERROR(INDEX(ListaDeClase[],MATCH(SUMPRODUCT((ListaDeClase[DÍA]=ProgramaciónDeClase[[#Headers],[MIÉRCOLES]])*(ROUNDDOWN($B47,10)>=ROUNDDOWN(ListaDeClase[HORA DE INICIO],10))*($B47<=ListaDeClase[HORA DE FINALIZACIÓN]),ListaDeClase[ÚNICO]),ListaDeClase[ÚNICO],0),2),0)","v":0},{"$f":"IFERROR(INDEX(ListaDeClase[],MATCH(SUMPRODUCT((ListaDeClase[DÍA]=ProgramaciónDeClase[[#Headers],[JUEVES]])*(ROUNDDOWN($B47,10)>=ROUNDDOWN(ListaDeClase[HORA DE INICIO],10))*($B47<=ListaDeClase[HORA DE FINALIZACIÓN]),ListaDeClase[ÚNICO]),ListaDeClase[ÚNICO],0),2),0)","v":0},{"$f":"IFERROR(INDEX(ListaDeClase[],MATCH(SUMPRODUCT((ListaDeClase[DÍA]=ProgramaciónDeClase[[#Headers],[VIERNES]])*(ROUNDDOWN($B47,10)>=ROUNDDOWN(ListaDeClase[HORA DE INICIO],10))*($B47<=ListaDeClase[HORA DE FINALIZACIÓN]),ListaDeClase[ÚNICO]),ListaDeClase[ÚNICO],0),2),0)","v":0},{"$f":"IFERROR(INDEX(ListaDeClase[],MATCH(SUMPRODUCT((ListaDeClase[DÍA]=ProgramaciónDeClase[[#Headers],[SÁBADO]])*(ROUNDDOWN($B47,10)>=ROUNDDOWN(ListaDeClase[HORA DE INICIO],10))*($B47<=ListaDeClase[HORA DE FINALIZACIÓN]),ListaDeClase[ÚNICO]),ListaDeClase[ÚNICO],0),2),0)","v":0}]
[null,"19:00:00",{"$f":"IFERROR(INDEX(ListaDeClase[],MATCH(SUMPRODUCT((ListaDeClase[DÍA]=ProgramaciónDeClase[[#Headers],[DOMINGO]])*(ROUNDDOWN($B48,10)>=ROUNDDOWN(ListaDeClase[HORA DE INICIO],10))*($B48<=ListaDeClase[HORA DE FINALIZACIÓN]),ListaDeClase[ÚNICO]),ListaDeClase[ÚNICO],0),2),0)","v":0},{"$f":"IFERROR(INDEX(ListaDeClase[],MATCH(SUMPRODUCT((ListaDeClase[DÍA]=ProgramaciónDeClase[[#Headers],[LUNES]])*(ROUNDDOWN($B48,10)>=ROUNDDOWN(ListaDeClase[HORA DE INICIO],10))*($B48<=ListaDeClase[HORA DE FINALIZACIÓN]),ListaDeClase[ÚNICO]),ListaDeClase[ÚNICO],0),2),0)","v":0},{"$f":"IFERROR(INDEX(ListaDeClase[],MATCH(SUMPRODUCT((ListaDeClase[DÍA]=ProgramaciónDeClase[[#Headers],[MARTES]])*(ROUNDDOWN($B48,10)>=ROUNDDOWN(ListaDeClase[HORA DE INICIO],10))*($B48<=ListaDeClase[HORA DE FINALIZACIÓN]),ListaDeClase[ÚNICO]),ListaDeClase[ÚNICO],0),2),0)","v":0},{"$f":"IFERROR(INDEX(ListaDeClase[],MATCH(SUMPRODUCT((ListaDeClase[DÍA]=ProgramaciónDeClase[[#Headers],[MIÉRCOLES]])*(ROUNDDOWN($B48,10)>=ROUNDDOWN(ListaDeClase[HORA DE INICIO],10))*($B48<=ListaDeClase[HORA DE FINALIZACIÓN]),ListaDeClase[ÚNICO]),ListaDeClase[ÚNICO],0),2),0)","v":0},{"$f":"IFERROR(INDEX(ListaDeClase[],MATCH(SUMPRODUCT((ListaDeClase[DÍA]=ProgramaciónDeClase[[#Headers],[JUEVES]])*(ROUNDDOWN($B48,10)>=ROUNDDOWN(ListaDeClase[HORA DE INICIO],10))*($B48<=ListaDeClase[HORA DE FINALIZACIÓN]),ListaDeClase[ÚNICO]),ListaDeClase[ÚNICO],0),2),0)","v":0},{"$f":"IFERROR(INDEX(ListaDeClase[],MATCH(SUMPRODUCT((ListaDeClase[DÍA]=ProgramaciónDeClase[[#Headers],[VIERNES]])*(ROUNDDOWN($B48,10)>=ROUNDDOWN(ListaDeClase[HORA DE INICIO],10))*($B48<=ListaDeClase[HORA DE FINALIZACIÓN]),ListaDeClase[ÚNICO]),ListaDeClase[ÚNICO],0),2),0)","v":0},{"$f":"IFERROR(INDEX(ListaDeClase[],MATCH(SUMPRODUCT((ListaDeClase[DÍA]=ProgramaciónDeClase[[#Headers],[SÁBADO]])*(ROUNDDOWN($B48,10)>=ROUNDDOWN(ListaDeClase[HORA DE INICIO],10))*($B48<=ListaDeClase[HORA DE FINALIZACIÓN]),ListaDeClase[ÚNICO]),ListaDeClase[ÚNICO],0),2),0)","v":0}]
[null,"19:15:00",{"$f":"IFERROR(INDEX(ListaDeClase[],MATCH(SUMPRODUCT((ListaDeClase[DÍA]=ProgramaciónDeClase[[#Headers],[DOMINGO]])*(ROUNDDOWN($B49,10)>=ROUNDDOWN(ListaDeClase[HORA DE INICIO],10))*($B49<=ListaDeClase[HORA DE FINALIZACIÓN]),ListaDeClase[ÚNICO]),ListaDeClase[ÚNICO],0),2),0)","v":0},{"$f":"IFERROR(INDEX(ListaDeClase[],MATCH(SUMPRODUCT((ListaDeClase[DÍA]=ProgramaciónDeClase[[#Headers],[LUNES]])*(ROUNDDOWN($B49,10)>=ROUNDDOWN(ListaDeClase[HORA DE INICIO],10))*($B49<=ListaDeClase[HORA DE FINALIZACIÓN]),ListaDeClase[ÚNICO]),ListaDeClase[ÚNICO],0),2),0)","v":0},{"$f":"IFERROR(INDEX(ListaDeClase[],MATCH(SUMPRODUCT((ListaDeClase[DÍA]=ProgramaciónDeClase[[#Headers],[MARTES]])*(ROUNDDOWN($B49,10)>=ROUNDDOWN(ListaDeClase[HORA DE INICIO],10))*($B49<=ListaDeClase[HORA DE FINALIZACIÓN]),ListaDeClase[ÚNICO]),ListaDeClase[ÚNICO],0),2),0)","v":0},{"$f":"IFERROR(INDEX(ListaDeClase[],MATCH(SUMPRODUCT((ListaDeClase[DÍA]=ProgramaciónDeClase[[#Headers],[MIÉRCOLES]])*(ROUNDDOWN($B49,10)>=ROUNDDOWN(ListaDeClase[HORA DE INICIO],10))*($B49<=ListaDeClase[HORA DE FINALIZACIÓN]),ListaDeClase[ÚNICO]),ListaDeClase[ÚNICO],0),2),0)","v":0},{"$f":"IFERROR(INDEX(ListaDeClase[],MATCH(SUMPRODUCT((ListaDeClase[DÍA]=ProgramaciónDeClase[[#Headers],[JUEVES]])*(ROUNDDOWN($B49,10)>=ROUNDDOWN(ListaDeClase[HORA DE INICIO],10))*($B49<=ListaDeClase[HORA DE FINALIZACIÓN]),ListaDeClase[ÚNICO]),ListaDeClase[ÚNICO],0),2),0)","v":0},{"$f":"IFERROR(INDEX(ListaDeClase[],MATCH(SUMPRODUCT((ListaDeClase[DÍA]=ProgramaciónDeClase[[#Headers],[VIERNES]])*(ROUNDDOWN($B49,10)>=ROUNDDOWN(ListaDeClase[HORA DE INICIO],10))*($B49<=ListaDeClase[HORA DE FINALIZACIÓN]),ListaDeClase[ÚNICO]),ListaDeClase[ÚNICO],0),2),0)","v":0},{"$f":"IFERROR(INDEX(ListaDeClase[],MATCH(SUMPRODUCT((ListaDeClase[DÍA]=ProgramaciónDeClase[[#Headers],[SÁBADO]])*(ROUNDDOWN($B49,10)>=ROUNDDOWN(ListaDeClase[HORA DE INICIO],10))*($B49<=ListaDeClase[HORA DE FINALIZACIÓN]),ListaDeClase[ÚNICO]),ListaDeClase[ÚNICO],0),2),0)","v":0}]
[null,"19:30:00",{"$f":"IFERROR(INDEX(ListaDeClase[],MATCH(SUMPRODUCT((ListaDeClase[DÍA]=ProgramaciónDeClase[[#Headers],[DOMINGO]])*(ROUNDDOWN($B50,10)>=ROUNDDOWN(ListaDeClase[HORA DE INICIO],10))*($B50<=ListaDeClase[HORA DE FINALIZACIÓN]),ListaDeClase[ÚNICO]),ListaDeClase[ÚNICO],0),2),0)","v":0},{"$f":"IFERROR(INDEX(ListaDeClase[],MATCH(SUMPRODUCT((ListaDeClase[DÍA]=ProgramaciónDeClase[[#Headers],[LUNES]])*(ROUNDDOWN($B50,10)>=ROUNDDOWN(ListaDeClase[HORA DE INICIO],10))*($B50<=ListaDeClase[HORA DE FINALIZACIÓN]),ListaDeClase[ÚNICO]),ListaDeClase[ÚNICO],0),2),0)","v":0},{"$f":"IFERROR(INDEX(ListaDeClase[],MATCH(SUMPRODUCT((ListaDeClase[DÍA]=ProgramaciónDeClase[[#Headers],[MARTES]])*(ROUNDDOWN($B50,10)>=ROUNDDOWN(ListaDeClase[HORA DE INICIO],10))*($B50<=ListaDeClase[HORA DE FINALIZACIÓN]),ListaDeClase[ÚNICO]),ListaDeClase[ÚNICO],0),2),0)","v":0},{"$f":"IFERROR(INDEX(ListaDeClase[],MATCH(SUMPRODUCT((ListaDeClase[DÍA]=ProgramaciónDeClase[[#Headers],[MIÉRCOLES]])*(ROUNDDOWN($B50,10)>=ROUNDDOWN(ListaDeClase[HORA DE INICIO],10))*($B50<=ListaDeClase[HORA DE FINALIZACIÓN]),ListaDeClase[ÚNICO]),ListaDeClase[ÚNICO],0),2),0)","v":0},{"$f":"IFERROR(INDEX(ListaDeClase[],MATCH(SUMPRODUCT((ListaDeClase[DÍA]=ProgramaciónDeClase[[#Headers],[JUEVES]])*(ROUNDDOWN($B50,10)>=ROUNDDOWN(ListaDeClase[HORA DE INICIO],10))*($B50<=ListaDeClase[HORA DE FINALIZACIÓN]),ListaDeClase[ÚNICO]),ListaDeClase[ÚNICO],0),2),0)","v":0},{"$f":"IFERROR(INDEX(ListaDeClase[],MATCH(SUMPRODUCT((ListaDeClase[DÍA]=ProgramaciónDeClase[[#Headers],[VIERNES]])*(ROUNDDOWN($B50,10)>=ROUNDDOWN(ListaDeClase[HORA DE INICIO],10))*($B50<=ListaDeClase[HORA DE FINALIZACIÓN]),ListaDeClase[ÚNICO]),ListaDeClase[ÚNICO],0),2),0)","v":0},{"$f":"IFERROR(INDEX(ListaDeClase[],MATCH(SUMPRODUCT((ListaDeClase[DÍA]=ProgramaciónDeClase[[#Headers],[SÁBADO]])*(ROUNDDOWN($B50,10)>=ROUNDDOWN(ListaDeClase[HORA DE INICIO],10))*($B50<=ListaDeClase[HORA DE FINALIZACIÓN]),ListaDeClase[ÚNICO]),ListaDeClase[ÚNICO],0),2),0)","v":0}]
[null,"19:45:00",{"$f":"IFERROR(INDEX(ListaDeClase[],MATCH(SUMPRODUCT((ListaDeClase[DÍA]=ProgramaciónDeClase[[#Headers],[DOMINGO]])*(ROUNDDOWN($B51,10)>=ROUNDDOWN(ListaDeClase[HORA DE INICIO],10))*($B51<=ListaDeClase[HORA DE FINALIZACIÓN]),ListaDeClase[ÚNICO]),ListaDeClase[ÚNICO],0),2),0)","v":0},{"$f":"IFERROR(INDEX(ListaDeClase[],MATCH(SUMPRODUCT((ListaDeClase[DÍA]=ProgramaciónDeClase[[#Headers],[LUNES]])*(ROUNDDOWN($B51,10)>=ROUNDDOWN(ListaDeClase[HORA DE INICIO],10))*($B51<=ListaDeClase[HORA DE FINALIZACIÓN]),ListaDeClase[ÚNICO]),ListaDeClase[ÚNICO],0),2),0)","v":0},{"$f":"IFERROR(INDEX(ListaDeClase[],MATCH(SUMPRODUCT((ListaDeClase[DÍA]=ProgramaciónDeClase[[#Headers],[MARTES]])*(ROUNDDOWN($B51,10)>=ROUNDDOWN(ListaDeClase[HORA DE INICIO],10))*($B51<=ListaDeClase[HORA DE FINALIZACIÓN]),ListaDeClase[ÚNICO]),ListaDeClase[ÚNICO],0),2),0)","v":0},{"$f":"IFERROR(INDEX(ListaDeClase[],MATCH(SUMPRODUCT((ListaDeClase[DÍA]=ProgramaciónDeClase[[#Headers],[MIÉRCOLES]])*(ROUNDDOWN($B51,10)>=ROUNDDOWN(ListaDeClase[HORA DE INICIO],10))*($B51<=ListaDeClase[HORA DE FINALIZACIÓN]),ListaDeClase[ÚNICO]),ListaDeClase[ÚNICO],0),2),0)","v":0},{"$f":"IFERROR(INDEX(ListaDeClase[],MATCH(SUMPRODUCT((ListaDeClase[DÍA]=ProgramaciónDeClase[[#Headers],[JUEVES]])*(ROUNDDOWN($B51,10)>=ROUNDDOWN(ListaDeClase[HORA DE INICIO],10))*($B51<=ListaDeClase[HORA DE FINALIZACIÓN]),ListaDeClase[ÚNICO]),ListaDeClase[ÚNICO],0),2),0)","v":0},{"$f":"IFERROR(INDEX(ListaDeClase[],MATCH(SUMPRODUCT((ListaDeClase[DÍA]=ProgramaciónDeClase[[#Headers],[VIERNES]])*(ROUNDDOWN($B51,10)>=ROUNDDOWN(ListaDeClase[HORA DE INICIO],10))*($B51<=ListaDeClase[HORA DE FINALIZACIÓN]),ListaDeClase[ÚNICO]),ListaDeClase[ÚNICO],0),2),0)","v":0},{"$f":"IFERROR(INDEX(ListaDeClase[],MATCH(SUMPRODUCT((ListaDeClase[DÍA]=ProgramaciónDeClase[[#Headers],[SÁBADO]])*(ROUNDDOWN($B51,10)>=ROUNDDOWN(ListaDeClase[HORA DE INICIO],10))*($B51<=ListaDeClase[HORA DE FINALIZACIÓN]),ListaDeClase[ÚNICO]),ListaDeClase[ÚNICO],0),2),0)","v":0}]
[null,"20:00:00",{"$f":"IFERROR(INDEX(ListaDeClase[],MATCH(SUMPRODUCT((ListaDeClase[DÍA]=ProgramaciónDeClase[[#Headers],[DOMINGO]])*(ROUNDDOWN($B52,10)>=ROUNDDOWN(ListaDeClase[HORA DE INICIO],10))*($B52<=ListaDeClase[HORA DE FINALIZACIÓN]),ListaDeClase[ÚNICO]),ListaDeClase[ÚNICO],0),2),0)","v":0},{"$f":"IFERROR(INDEX(ListaDeClase[],MATCH(SUMPRODUCT((ListaDeClase[DÍA]=ProgramaciónDeClase[[#Headers],[LUNES]])*(ROUNDDOWN($B52,10)>=ROUNDDOWN(ListaDeClase[HORA DE INICIO],10))*($B52<=ListaDeClase[HORA DE FINALIZACIÓN]),ListaDeClase[ÚNICO]),ListaDeClase[ÚNICO],0),2),0)","v":0},{"$f":"IFERROR(INDEX(ListaDeClase[],MATCH(SUMPRODUCT((ListaDeClase[DÍA]=ProgramaciónDeClase[[#Headers],[MARTES]])*(ROUNDDOWN($B52,10)>=ROUNDDOWN(ListaDeClase[HORA DE INICIO],10))*($B52<=ListaDeClase[HORA DE FINALIZACIÓN]),ListaDeClase[ÚNICO]),ListaDeClase[ÚNICO],0),2),0)","v":0},{"$f":"IFERROR(INDEX(ListaDeClase[],MATCH(SUMPRODUCT((ListaDeClase[DÍA]=ProgramaciónDeClase[[#Headers],[MIÉRCOLES]])*(ROUNDDOWN($B52,10)>=ROUNDDOWN(ListaDeClase[HORA DE INICIO],10))*($B52<=ListaDeClase[HORA DE FINALIZACIÓN]),ListaDeClase[ÚNICO]),ListaDeClase[ÚNICO],0),2),0)","v":0},{"$f":"IFERROR(INDEX(ListaDeClase[],MATCH(SUMPRODUCT((ListaDeClase[DÍA]=ProgramaciónDeClase[[#Headers],[JUEVES]])*(ROUNDDOWN($B52,10)>=ROUNDDOWN(ListaDeClase[HORA DE INICIO],10))*($B52<=ListaDeClase[HORA DE FINALIZACIÓN]),ListaDeClase[ÚNICO]),ListaDeClase[ÚNICO],0),2),0)","v":0},{"$f":"IFERROR(INDEX(ListaDeClase[],MATCH(SUMPRODUCT((ListaDeClase[DÍA]=ProgramaciónDeClase[[#Headers],[VIERNES]])*(ROUNDDOWN($B52,10)>=ROUNDDOWN(ListaDeClase[HORA DE INICIO],10))*($B52<=ListaDeClase[HORA DE FINALIZACIÓN]),ListaDeClase[ÚNICO]),ListaDeClase[ÚNICO],0),2),0)","v":0},{"$f":"IFERROR(INDEX(ListaDeClase[],MATCH(SUMPRODUCT((ListaDeClase[DÍA]=ProgramaciónDeClase[[#Headers],[SÁBADO]])*(ROUNDDOWN($B52,10)>=ROUNDDOWN(ListaDeClase[HORA DE INICIO],10))*($B52<=ListaDeClase[HORA DE FINALIZACIÓN]),ListaDeClase[ÚNICO]),ListaDeClase[ÚNICO],0),2),0)","v":0}]
[null,"20:15:00",{"$f":"IFERROR(INDEX(ListaDeClase[],MATCH(SUMPRODUCT((ListaDeClase[DÍA]=ProgramaciónDeClase[[#Headers],[DOMINGO]])*(ROUNDDOWN($B53,10)>=ROUNDDOWN(ListaDeClase[HORA DE INICIO],10))*($B53<=ListaDeClase[HORA DE FINALIZACIÓN]),ListaDeClase[ÚNICO]),ListaDeClase[ÚNICO],0),2),0)","v":0},{"$f":"IFERROR(INDEX(ListaDeClase[],MATCH(SUMPRODUCT((ListaDeClase[DÍA]=ProgramaciónDeClase[[#Headers],[LUNES]])*(ROUNDDOWN($B53,10)>=ROUNDDOWN(ListaDeClase[HORA DE INICIO],10))*($B53<=ListaDeClase[HORA DE FINALIZACIÓN]),ListaDeClase[ÚNICO]),ListaDeClase[ÚNICO],0),2),0)","v":0},{"$f":"IFERROR(INDEX(ListaDeClase[],MATCH(SUMPRODUCT((ListaDeClase[DÍA]=ProgramaciónDeClase[[#Headers],[MARTES]])*(ROUNDDOWN($B53,10)>=ROUNDDOWN(ListaDeClase[HORA DE INICIO],10))*($B53<=ListaDeClase[HORA DE FINALIZACIÓN]),ListaDeClase[ÚNICO]),ListaDeClase[ÚNICO],0),2),0)","v":0},{"$f":"IFERROR(INDEX(ListaDeClase[],MATCH(SUMPRODUCT((ListaDeClase[DÍA]=ProgramaciónDeClase[[#Headers],[MIÉRCOLES]])*(ROUNDDOWN($B53,10)>=ROUNDDOWN(ListaDeClase[HORA DE INICIO],10))*($B53<=ListaDeClase[HORA DE FINALIZACIÓN]),ListaDeClase[ÚNICO]),ListaDeClase[ÚNICO],0),2),0)","v":0},{"$f":"IFERROR(INDEX(ListaDeClase[],MATCH(SUMPRODUCT((ListaDeClase[DÍA]=ProgramaciónDeClase[[#Headers],[JUEVES]])*(ROUNDDOWN($B53,10)>=ROUNDDOWN(ListaDeClase[HORA DE INICIO],10))*($B53<=ListaDeClase[HORA DE FINALIZACIÓN]),ListaDeClase[ÚNICO]),ListaDeClase[ÚNICO],0),2),0)","v":0},{"$f":"IFERROR(INDEX(ListaDeClase[],MATCH(SUMPRODUCT((ListaDeClase[DÍA]=ProgramaciónDeClase[[#Headers],[VIERNES]])*(ROUNDDOWN($B53,10)>=ROUNDDOWN(ListaDeClase[HORA DE INICIO],10))*($B53<=ListaDeClase[HORA DE FINALIZACIÓN]),ListaDeClase[ÚNICO]),ListaDeClase[ÚNICO],0),2),0)","v":0},{"$f":"IFERROR(INDEX(ListaDeClase[],MATCH(SUMPRODUCT((ListaDeClase[DÍA]=ProgramaciónDeClase[[#Headers],[SÁBADO]])*(ROUNDDOWN($B53,10)>=ROUNDDOWN(ListaDeClase[HORA DE INICIO],10))*($B53<=ListaDeClase[HORA DE FINALIZACIÓN]),ListaDeClase[ÚNICO]),ListaDeClase[ÚNICO],0),2),0)","v":0}]
[null,"20:30:00",{"$f":"IFERROR(INDEX(ListaDeClase[],MATCH(SUMPRODUCT((ListaDeClase[DÍA]=ProgramaciónDeClase[[#Headers],[DOMINGO]])*(ROUNDDOWN($B54,10)>=ROUNDDOWN(ListaDeClase[HORA DE INICIO],10))*($B54<=ListaDeClase[HORA DE FINALIZACIÓN]),ListaDeClase[ÚNICO]),ListaDeClase[ÚNICO],0),2),0)","v":0},{"$f":"IFERROR(INDEX(ListaDeClase[],MATCH(SUMPRODUCT((ListaDeClase[DÍA]=ProgramaciónDeClase[[#Headers],[LUNES]])*(ROUNDDOWN($B54,10)>=ROUNDDOWN(ListaDeClase[HORA DE INICIO],10))*($B54<=ListaDeClase[HORA DE FINALIZACIÓN]),ListaDeClase[ÚNICO]),ListaDeClase[ÚNICO],0),2),0)","v":0},{"$f":"IFERROR(INDEX(ListaDeClase[],MATCH(SUMPRODUCT((ListaDeClase[DÍA]=ProgramaciónDeClase[[#Headers],[MARTES]])*(ROUNDDOWN($B54,10)>=ROUNDDOWN(ListaDeClase[HORA DE INICIO],10))*($B54<=ListaDeClase[HORA DE FINALIZACIÓN]),ListaDeClase[ÚNICO]),ListaDeClase[ÚNICO],0),2),0)","v":0},{"$f":"IFERROR(INDEX(ListaDeClase[],MATCH(SUMPRODUCT((ListaDeClase[DÍA]=ProgramaciónDeClase[[#Headers],[MIÉRCOLES]])*(ROUNDDOWN($B54,10)>=ROUNDDOWN(ListaDeClase[HORA DE INICIO],10))*($B54<=ListaDeClase[HORA DE FINALIZACIÓN]),ListaDeClase[ÚNICO]),ListaDeClase[ÚNICO],0),2),0)","v":0},{"$f":"IFERROR(INDEX(ListaDeClase[],MATCH(SUMPRODUCT((ListaDeClase[DÍA]=ProgramaciónDeClase[[#Headers],[JUEVES]])*(ROUNDDOWN($B54,10)>=ROUNDDOWN(ListaDeClase[HORA DE INICIO],10))*($B54<=ListaDeClase[HORA DE FINALIZACIÓN]),ListaDeClase[ÚNICO]),ListaDeClase[ÚNICO],0),2),0)","v":0},{"$f":"IFERROR(INDEX(ListaDeClase[],MATCH(SUMPRODUCT((ListaDeClase[DÍA]=ProgramaciónDeClase[[#Headers],[VIERNES]])*(ROUNDDOWN($B54,10)>=ROUNDDOWN(ListaDeClase[HORA DE INICIO],10))*($B54<=ListaDeClase[HORA DE FINALIZACIÓN]),ListaDeClase[ÚNICO]),ListaDeClase[ÚNICO],0),2),0)","v":0},{"$f":"IFERROR(INDEX(ListaDeClase[],MATCH(SUMPRODUCT((ListaDeClase[DÍA]=ProgramaciónDeClase[[#Headers],[SÁBADO]])*(ROUNDDOWN($B54,10)>=ROUNDDOWN(ListaDeClase[HORA DE INICIO],10))*($B54<=ListaDeClase[HORA DE FINALIZACIÓN]),ListaDeClase[ÚNICO]),ListaDeClase[ÚNICO],0),2),0)","v":0}]
[null,"20:45:00",{"$f":"IFERROR(INDEX(ListaDeClase[],MATCH(SUMPRODUCT((ListaDeClase[DÍA]=ProgramaciónDeClase[[#Headers],[DOMINGO]])*(ROUNDDOWN($B55,10)>=ROUNDDOWN(ListaDeClase[HORA DE INICIO],10))*($B55<=ListaDeClase[HORA DE FINALIZACIÓN]),ListaDeClase[ÚNICO]),ListaDeClase[ÚNICO],0),2),0)","v":0},{"$f":"IFERROR(INDEX(ListaDeClase[],MATCH(SUMPRODUCT((ListaDeClase[DÍA]=ProgramaciónDeClase[[#Headers],[LUNES]])*(ROUNDDOWN($B55,10)>=ROUNDDOWN(ListaDeClase[HORA DE INICIO],10))*($B55<=ListaDeClase[HORA DE FINALIZACIÓN]),ListaDeClase[ÚNICO]),ListaDeClase[ÚNICO],0),2),0)","v":0},{"$f":"IFERROR(INDEX(ListaDeClase[],MATCH(SUMPRODUCT((ListaDeClase[DÍA]=ProgramaciónDeClase[[#Headers],[MARTES]])*(ROUNDDOWN($B55,10)>=ROUNDDOWN(ListaDeClase[HORA DE INICIO],10))*($B55<=ListaDeClase[HORA DE FINALIZACIÓN]),ListaDeClase[ÚNICO]),ListaDeClase[ÚNICO],0),2),0)","v":0},{"$f":"IFERROR(INDEX(ListaDeClase[],MATCH(SUMPRODUCT((ListaDeClase[DÍA]=ProgramaciónDeClase[[#Headers],[MIÉRCOLES]])*(ROUNDDOWN($B55,10)>=ROUNDDOWN(ListaDeClase[HORA DE INICIO],10))*($B55<=ListaDeClase[HORA DE FINALIZACIÓN]),ListaDeClase[ÚNICO]),ListaDeClase[ÚNICO],0),2),0)","v":0},{"$f":"IFERROR(INDEX(ListaDeClase[],MATCH(SUMPRODUCT((ListaDeClase[DÍA]=ProgramaciónDeClase[[#Headers],[JUEVES]])*(ROUNDDOWN($B55,10)>=ROUNDDOWN(ListaDeClase[HORA DE INICIO],10))*($B55<=ListaDeClase[HORA DE FINALIZACIÓN]),ListaDeClase[ÚNICO]),ListaDeClase[ÚNICO],0),2),0)","v":0},{"$f":"IFERROR(INDEX(ListaDeClase[],MATCH(SUMPRODUCT((ListaDeClase[DÍA]=ProgramaciónDeClase[[#Headers],[VIERNES]])*(ROUNDDOWN($B55,10)>=ROUNDDOWN(ListaDeClase[HORA DE INICIO],10))*($B55<=ListaDeClase[HORA DE FINALIZACIÓN]),ListaDeClase[ÚNICO]),ListaDeClase[ÚNICO],0),2),0)","v":0},{"$f":"IFERROR(INDEX(ListaDeClase[],MATCH(SUMPRODUCT((ListaDeClase[DÍA]=ProgramaciónDeClase[[#Headers],[SÁBADO]])*(ROUNDDOWN($B55,10)>=ROUNDDOWN(ListaDeClase[HORA DE INICIO],10))*($B55<=ListaDeClase[HORA DE FINALIZACIÓN]),ListaDeClase[ÚNICO]),ListaDeClase[ÚNICO],0),2),0)","v":0}]
[null,"21:00:00",{"$f":"IFERROR(INDEX(ListaDeClase[],MATCH(SUMPRODUCT((ListaDeClase[DÍA]=ProgramaciónDeClase[[#Headers],[DOMINGO]])*(ROUNDDOWN($B56,10)>=ROUNDDOWN(ListaDeClase[HORA DE INICIO],10))*($B56<=ListaDeClase[HORA DE FINALIZACIÓN]),ListaDeClase[ÚNICO]),ListaDeClase[ÚNICO],0),2),0)","v":0},{"$f":"IFERROR(INDEX(ListaDeClase[],MATCH(SUMPRODUCT((ListaDeClase[DÍA]=ProgramaciónDeClase[[#Headers],[LUNES]])*(ROUNDDOWN($B56,10)>=ROUNDDOWN(ListaDeClase[HORA DE INICIO],10))*($B56<=ListaDeClase[HORA DE FINALIZACIÓN]),ListaDeClase[ÚNICO]),ListaDeClase[ÚNICO],0),2),0)","v":0},{"$f":"IFERROR(INDEX(ListaDeClase[],MATCH(SUMPRODUCT((ListaDeClase[DÍA]=ProgramaciónDeClase[[#Headers],[MARTES]])*(ROUNDDOWN($B56,10)>=ROUNDDOWN(ListaDeClase[HORA DE INICIO],10))*($B56<=ListaDeClase[HORA DE FINALIZACIÓN]),ListaDeClase[ÚNICO]),ListaDeClase[ÚNICO],0),2),0)","v":0},{"$f":"IFERROR(INDEX(ListaDeClase[],MATCH(SUMPRODUCT((ListaDeClase[DÍA]=ProgramaciónDeClase[[#Headers],[MIÉRCOLES]])*(ROUNDDOWN($B56,10)>=ROUNDDOWN(ListaDeClase[HORA DE INICIO],10))*($B56<=ListaDeClase[HORA DE FINALIZACIÓN]),ListaDeClase[ÚNICO]),ListaDeClase[ÚNICO],0),2),0)","v":0},{"$f":"IFERROR(INDEX(ListaDeClase[],MATCH(SUMPRODUCT((ListaDeClase[DÍA]=ProgramaciónDeClase[[#Headers],[JUEVES]])*(ROUNDDOWN($B56,10)>=ROUNDDOWN(ListaDeClase[HORA DE INICIO],10))*($B56<=ListaDeClase[HORA DE FINALIZACIÓN]),ListaDeClase[ÚNICO]),ListaDeClase[ÚNICO],0),2),0)","v":0},{"$f":"IFERROR(INDEX(ListaDeClase[],MATCH(SUMPRODUCT((ListaDeClase[DÍA]=ProgramaciónDeClase[[#Headers],[VIERNES]])*(ROUNDDOWN($B56,10)>=ROUNDDOWN(ListaDeClase[HORA DE INICIO],10))*($B56<=ListaDeClase[HORA DE FINALIZACIÓN]),ListaDeClase[ÚNICO]),ListaDeClase[ÚNICO],0),2),0)","v":0},{"$f":"IFERROR(INDEX(ListaDeClase[],MATCH(SUMPRODUCT((ListaDeClase[DÍA]=ProgramaciónDeClase[[#Headers],[SÁBADO]])*(ROUNDDOWN($B56,10)>=ROUNDDOWN(ListaDeClase[HORA DE INICIO],10))*($B56<=ListaDeClase[HORA DE FINALIZACIÓN]),ListaDeClase[ÚNICO]),ListaDeClase[ÚNICO],0),2),0)","v":0}]

{"sheet":"Lista de clase","index":1,"n_rows":10,"n_cols":8,"rows_kept":10,"merged":[[0,1,0,5],[0,6,0,7]]}
[null,"LISTA DE CLASE",{"$nulls":4},"Programación de clase"]
[null,"CLASE","ID","DÍA","UBICACIÓN","HORA DE INICIO","HORA DE FINALIZACIÓN","ÚNICO"]
[null,"Escritura técnica","WR-121","LUNES","Edificio A","13:00:00","14:00:00",{"$f":"ROW()-ROW(ListaDeClase[[#Headers],[ÚNICO]])","v":1}]
[null,"Escritura técnica","WR-121","MIÉRCOLES","Edificio A","13:00:00","14:00:00",{"$f":"ROW()-ROW(ListaDeClase[[#Headers],[ÚNICO]])","v":2}]
[null,"Hablar en público","SP-111","LUNES","Edificio B","16:00:00","17:00:00",{"$f":"ROW()-ROW(ListaDeClase[[#Headers],[ÚNICO]])","v":3}]
[null,"Salud y forma física ","HPE-295","MARTES","Edificio B","11:00:00","12:00:00",{"$f":"ROW()-ROW(ListaDeClase[[#Headers],[ÚNICO]])","v":4}]
[null,"Salud y forma física ","HPE-295","JUEVES","Edificio B","11:00:00","12:00:00",{"$f":"ROW()-ROW(ListaDeClase[[#Headers],[ÚNICO]])","v":5}]
[null,"Álgebra","MTH-113","LUNES","Edificio C","08:10:00","09:15:00",{"$f":"ROW()-ROW(ListaDeClase[[#Headers],[ÚNICO]])","v":6}]
[null,"Álgebra","MTH-113","MIÉRCOLES","Edificio C","08:10:00","09:15:00",{"$f":"ROW()-ROW(ListaDeClase[[#Headers],[ÚNICO]])","v":7}]
[null,"Álgebra","MTH-113","VIERNES","Edificio C","08:10:00","09:15:00",{"$f":"ROW()-ROW(ListaDeClase[[#Headers],[ÚNICO]])","v":8}]